{"text_format":"1","workbook":"xlsx","n_sheets":7,"sheets":["Welcome","FFN - Current Lifestyle","FFN - Current Income","FFN - Financial Freedom Number","FAN - Dream Lifestyle","FAN - Current Income","FAN -Financial Abundance Number"],"not_rendered":{"charts":0,"images":1,"macros":1,"external_links":0,"defined_names":7,"comments":1,"pivot_tables":0},"unopened":[],"bounds":{"document_bytes":16777216,"sheet_cells":100000,"rows_first":2000,"rows_last":500,"rows_between":2000,"halvings":0,"cell_chars":16384,"cell_head_chars":4096},"cells_cut":0,"cells_raw":0,"read":"whole","date_system":"1900"}

{"sheet":"Welcome","index":0,"n_rows":0,"n_cols":0,"rows_kept":0,"cut":false,"hidden":false,"merged":[]}

{"sheet":"FFN - Current Lifestyle","index":1,"n_rows":57,"n_cols":5,"rows_kept":57,"cut":false,"hidden":false,"merged":[[1,1,2,3]]}
[]
[null,"Current Lifestyle Expenses",null,null,"TOTAL"]
[null,null,null,null,"Yearly"]
[null,null,"Frequency","Amount","Converted $"]
[null,"Home",null,null,{"$f":"IF(D5=\"\",\"\",\n\nIF(AND(C5=\"Yearly\",'FFN - Current Lifestyle'!$E$3=\"Yearly\"),D5,\nIF(AND(C5=\"Monthly\",'FFN - Current Lifestyle'!$E$3=\"Yearly\"),D5*12,\nIF(AND(C5=\"Weekly\",'FFN - Current Lifestyle'!$E$3=\"Yearly\"),D5*52,\n\nIF(AND(C5=\"Yearly\",'FFN - Current Lifestyle'!$E$3=\"Monthly\"),D5/12,\nIF(AND(C5=\"Monthly\",'FFN - Current Lifestyle'!$E$3=\"Monthly\"),D5,\nIF(AND(C5=\"Weekly\",'FFN - Current Lifestyle'!$E$3=\"Monthly\"),D5*(52/12),\n\nIF(AND(C5=\"Yearly\",'FFN - Current Lifestyle'!$E$3=\"Weekly\"),D5/52,\nIF(AND(C5=\"Monthly\",'FFN - Current Lifestyle'!$E$3=\"Weekly\"),D5*(12/52),\nIF(AND(C5=\"Weekly\",'FFN - Current Lifestyle'!$E$3=\"Weekly\"),D5,\n\n\"N/A\"))))))))))","v":""}]
[null,"Rent/Mortgage",null,null,{"$f":"IF(D6=\"\",\"\",\n\nIF(AND(C6=\"Yearly\",'FFN - Current Lifestyle'!$E$3=\"Yearly\"),D6,\nIF(AND(C6=\"Monthly\",'FFN - Current Lifestyle'!$E$3=\"Yearly\"),D6*12,\nIF(AND(C6=\"Weekly\",'FFN - Current Lifestyle'!$E$3=\"Yearly\"),D6*52,\nIF(AND(C6=\"Quarterly\",'FFN - Current Lifestyle'!$E$3=\"Yearly\"),D6*4,\n\nIF(AND(C6=\"Yearly\",'FFN - Current Lifestyle'!$E$3=\"Monthly\"),D6/12,\nIF(AND(C6=\"Monthly\",'FFN - Current Lifestyle'!$E$3=\"Monthly\"),D6,\nIF(AND(C6=\"Weekly\",'FFN - Current Lifestyle'!$E$3=\"Monthly\"),D6*(52/12),\nIF(AND(C6=\"Quarterly\",'FFN - Current Lifestyle'!$E$3=\"Monthly\"),D6/3,\n\nIF(AND(C6=\"Yearly\",'FFN - Current Lifestyle'!$E$3=\"Weekly\"),D6/52,\nIF(AND(C6=\"Monthly\",'FFN - Current Lifestyle'!$E$3=\"Weekly\"),D6*(12/52),\nIF(AND(C6=\"Weekly\",'FFN - Current Lifestyle'!$E$3=\"Weekly\"),D6,\nIF(AND(C6=\"Quarterly\",'FFN - Current Lifestyle'!$E$3=\"Weekly\"),(D6*4)/52,\n\n\"Enter Frequency\")))))))))))))","v":""}]
[null,"Home Maintenance",null,null,{"$f":"IF(D7=\"\",\"\",\n\nIF(AND(C7=\"Yearly\",'FFN - Current Lifestyle'!$E$3=\"Yearly\"),D7,\nIF(AND(C7=\"Monthly\",'FFN - Current Lifestyle'!$E$3=\"Yearly\"),D7*12,\nIF(AND(C7=\"Weekly\",'FFN - Current Lifestyle'!$E$3=\"Yearly\"),D7*52,\nIF(AND(C7=\"Quarterly\",'FFN - Current Lifestyle'!$E$3=\"Yearly\"),D7*4,\n\nIF(AND(C7=\"Yearly\",'FFN - Current Lifestyle'!$E$3=\"Monthly\"),D7/12,\nIF(AND(C7=\"Monthly\",'FFN - Current Lifestyle'!$E$3=\"Monthly\"),D7,\nIF(AND(C7=\"Weekly\",'FFN - Current Lifestyle'!$E$3=\"Monthly\"),D7*(52/12),\nIF(AND(C7=\"Quarterly\",'FFN - Current Lifestyle'!$E$3=\"Monthly\"),D7/3,\n\nIF(AND(C7=\"Yearly\",'FFN - Current Lifestyle'!$E$3=\"Weekly\"),D7/52,\nIF(AND(C7=\"Monthly\",'FFN - Current Lifestyle'!$E$3=\"Weekly\"),D7*(12/52),\nIF(AND(C7=\"Weekly\",'FFN - Current Lifestyle'!$E$3=\"Weekly\"),D7,\nIF(AND(C7=\"Quarterly\",'FFN - Current Lifestyle'!$E$3=\"Weekly\"),(D7*4)/52,\n\n\"Enter Frequency\")))))))))))))","v":""}]
[null,"Appliances",null,null,{"$f":"IF(D8=\"\",\"\",\n\nIF(AND(C8=\"Yearly\",'FFN - Current Lifestyle'!$E$3=\"Yearly\"),D8,\nIF(AND(C8=\"Monthly\",'FFN - Current Lifestyle'!$E$3=\"Yearly\"),D8*12,\nIF(AND(C8=\"Weekly\",'FFN - Current Lifestyle'!$E$3=\"Yearly\"),D8*52,\nIF(AND(C8=\"Quarterly\",'FFN - Current Lifestyle'!$E$3=\"Yearly\"),D8*4,\n\nIF(AND(C8=\"Yearly\",'FFN - Current Lifestyle'!$E$3=\"Monthly\"),D8/12,\nIF(AND(C8=\"Monthly\",'FFN - Current Lifestyle'!$E$3=\"Monthly\"),D8,\nIF(AND(C8=\"Weekly\",'FFN - Current Lifestyle'!$E$3=\"Monthly\"),D8*(52/12),\nIF(AND(C8=\"Quarterly\",'FFN - Current Lifestyle'!$E$3=\"Monthly\"),D8/3,\n\nIF(AND(C8=\"Yearly\",'FFN - Current Lifestyle'!$E$3=\"Weekly\"),D8/52,\nIF(AND(C8=\"Monthly\",'FFN - Current Lifestyle'!$E$3=\"Weekly\"),D8*(12/52),\nIF(AND(C8=\"Weekly\",'FFN - Current Lifestyle'!$E$3=\"Weekly\"),D8,\nIF(AND(C8=\"Quarterly\",'FFN - Current Lifestyle'!$E$3=\"Weekly\"),(D8*4)/52,\n\n\"Enter Frequency\")))))))))))))","v":""}]
[null,"Insurance (Home)",null,null,{"$f":"IF(D9=\"\",\"\",\n\nIF(AND(C9=\"Yearly\",'FFN - Current Lifestyle'!$E$3=\"Yearly\"),D9,\nIF(AND(C9=\"Monthly\",'FFN - Current Lifestyle'!$E$3=\"Yearly\"),D9*12,\nIF(AND(C9=\"Weekly\",'FFN - Current Lifestyle'!$E$3=\"Yearly\"),D9*52,\nIF(AND(C9=\"Quarterly\",'FFN - Current Lifestyle'!$E$3=\"Yearly\"),D9*4,\n\nIF(AND(C9=\"Yearly\",'FFN - Current Lifestyle'!$E$3=\"Monthly\"),D9/12,\nIF(AND(C9=\"Monthly\",'FFN - Current Lifestyle'!$E$3=\"Monthly\"),D9,\nIF(AND(C9=\"Weekly\",'FFN - Current Lifestyle'!$E$3=\"Monthly\"),D9*(52/12),\nIF(AND(C9=\"Quarterly\",'FFN - Current Lifestyle'!$E$3=\"Monthly\"),D9/3,\n\nIF(AND(C9=\"Yearly\",'FFN - Current Lifestyle'!$E$3=\"Weekly\"),D9/52,\nIF(AND(C9=\"Monthly\",'FFN - Current Lifestyle'!$E$3=\"Weekly\"),D9*(12/52),\nIF(AND(C9=\"Weekly\",'FFN - Current Lifestyle'!$E$3=\"Weekly\"),D9,\nIF(AND(C9=\"Quarterly\",'FFN - Current Lifestyle'!$E$3=\"Weekly\"),(D9*4)/52,\n\n\"Enter Frequency\")))))))))))))","v":""}]
[null,"Food",null,null,{"$f":"IF(D10=\"\",\"\",\n\nIF(AND(C10=\"Yearly\",'FFN - Current Lifestyle'!$E$3=\"Yearly\"),D10,\nIF(AND(C10=\"Monthly\",'FFN - Current Lifestyle'!$E$3=\"Yearly\"),D10*12,\nIF(AND(C10=\"Weekly\",'FFN - Current Lifestyle'!$E$3=\"Yearly\"),D10*52,\nIF(AND(C10=\"Quarterly\",'FFN - Current Lifestyle'!$E$3=\"Yearly\"),D10*4,\n\nIF(AND(C10=\"Yearly\",'FFN - Current Lifestyle'!$E$3=\"Monthly\"),D10/12,\nIF(AND(C10=\"Monthly\",'FFN - Current Lifestyle'!$E$3=\"Monthly\"),D10,\nIF(AND(C10=\"Weekly\",'FFN - Current Lifestyle'!$E$3=\"Monthly\"),D10*(52/12),\nIF(AND(C10=\"Quarterly\",'FFN - Current Lifestyle'!$E$3=\"Monthly\"),D10/3,\n\nIF(AND(C10=\"Yearly\",'FFN - Current Lifestyle'!$E$3=\"Weekly\"),D10/52,\nIF(AND(C10=\"Monthly\",'FFN - Current Lifestyle'!$E$3=\"Weekly\"),D10*(12/52),\nIF(AND(C10=\"Weekly\",'FFN - Current Lifestyle'!$E$3=\"Weekly\"),D10,\nIF(AND(C10=\"Quarterly\",'FFN - Current Lifestyle'!$E$3=\"Weekly\"),(D10*4)/52,\n\n\"Enter Frequency\")))))))))))))","v":""}]
[null,"Food/Groceries",null,null,{"$f":"IF(D11=\"\",\"\",\n\nIF(AND(C11=\"Yearly\",'FFN - Current Lifestyle'!$E$3=\"Yearly\"),D11,\nIF(AND(C11=\"Monthly\",'FFN - Current Lifestyle'!$E$3=\"Yearly\"),D11*12,\nIF(AND(C11=\"Weekly\",'FFN - Current Lifestyle'!$E$3=\"Yearly\"),D11*52,\nIF(AND(C11=\"Quarterly\",'FFN - Current Lifestyle'!$E$3=\"Yearly\"),D11*4,\n\nIF(AND(C11=\"Yearly\",'FFN - Current Lifestyle'!$E$3=\"Monthly\"),D11/12,\nIF(AND(C11=\"Monthly\",'FFN - Current Lifestyle'!$E$3=\"Monthly\"),D11,\nIF(AND(C11=\"Weekly\",'FFN - Current Lifestyle'!$E$3=\"Monthly\"),D11*(52/12),\nIF(AND(C11=\"Quarterly\",'FFN - Current Lifestyle'!$E$3=\"Monthly\"),D11/3,\n\nIF(AND(C11=\"Yearly\",'FFN - Current Lifestyle'!$E$3=\"Weekly\"),D11/52,\nIF(AND(C11=\"Monthly\",'FFN - Current Lifestyle'!$E$3=\"Weekly\"),D11*(12/52),\nIF(AND(C11=\"Weekly\",'FFN - Current Lifestyle'!$E$3=\"Weekly\"),D11,\nIF(AND(C11=\"Quarterly\",'FFN - Current Lifestyle'!$E$3=\"Weekly\"),(D11*4)/52,\n\n\"Enter Frequency\")))))))))))))","v":""}]
[null,"Eating Out",null,null,{"$f":"IF(D12=\"\",\"\",\n\nIF(AND(C12=\"Yearly\",'FFN - Current Lifestyle'!$E$3=\"Yearly\"),D12,\nIF(AND(C12=\"Monthly\",'FFN - Current Lifestyle'!$E$3=\"Yearly\"),D12*12,\nIF(AND(C12=\"Weekly\",'FFN - Current Lifestyle'!$E$3=\"Yearly\"),D12*52,\nIF(AND(C12=\"Quarterly\",'FFN - Current Lifestyle'!$E$3=\"Yearly\"),D12*4,\n\nIF(AND(C12=\"Yearly\",'FFN - Current Lifestyle'!$E$3=\"Monthly\"),D12/12,\nIF(AND(C12=\"Monthly\",'FFN - Current Lifestyle'!$E$3=\"Monthly\"),D12,\nIF(AND(C12=\"Weekly\",'FFN - Current Lifestyle'!$E$3=\"Monthly\"),D12*(52/12),\nIF(AND(C12=\"Quarterly\",'FFN - Current Lifestyle'!$E$3=\"Monthly\"),D12/3,\n\nIF(AND(C12=\"Yearly\",'FFN - Current Lifestyle'!$E$3=\"Weekly\"),D12/52,\nIF(AND(C12=\"Monthly\",'FFN - Current Lifestyle'!$E$3=\"Weekly\"),D12*(12/52),\nIF(AND(C12=\"Weekly\",'FFN - Current Lifestyle'!$E$3=\"Weekly\"),D12,\nIF(AND(C12=\"Quarterly\",'FFN - Current Lifestyle'!$E$3=\"Weekly\"),(D12*4)/52,\n\n\"Enter Frequency\")))))))))))))","v":""}]
[null,"Bills",null,null,{"$f":"IF(D13=\"\",\"\",\n\nIF(AND(C13=\"Yearly\",'FFN - Current Lifestyle'!$E$3=\"Yearly\"),D13,\nIF(AND(C13=\"Monthly\",'FFN - Current Lifestyle'!$E$3=\"Yearly\"),D13*12,\nIF(AND(C13=\"Weekly\",'FFN - Current Lifestyle'!$E$3=\"Yearly\"),D13*52,\nIF(AND(C13=\"Quarterly\",'FFN - Current Lifestyle'!$E$3=\"Yearly\"),D13*4,\n\nIF(AND(C13=\"Yearly\",'FFN - Current Lifestyle'!$E$3=\"Monthly\"),D13/12,\nIF(AND(C13=\"Monthly\",'FFN - Current Lifestyle'!$E$3=\"Monthly\"),D13,\nIF(AND(C13=\"Weekly\",'FFN - Current Lifestyle'!$E$3=\"Monthly\"),D13*(52/12),\nIF(AND(C13=\"Quarterly\",'FFN - Current Lifestyle'!$E$3=\"Monthly\"),D13/3,\n\nIF(AND(C13=\"Yearly\",'FFN - Current Lifestyle'!$E$3=\"Weekly\"),D13/52,\nIF(AND(C13=\"Monthly\",'FFN - Current Lifestyle'!$E$3=\"Weekly\"),D13*(12/52),\nIF(AND(C13=\"Weekly\",'FFN - Current Lifestyle'!$E$3=\"Weekly\"),D13,\nIF(AND(C13=\"Quarterly\",'FFN - Current Lifestyle'!$E$3=\"Weekly\"),(D13*4)/52,\n\n\"Enter Frequency\")))))))))))))","v":""}]
[null,"Internet Bill",null,null,{"$f":"IF(D14=\"\",\"\",\n\nIF(AND(C14=\"Yearly\",'FFN - Current Lifestyle'!$E$3=\"Yearly\"),D14,\nIF(AND(C14=\"Monthly\",'FFN - Current Lifestyle'!$E$3=\"Yearly\"),D14*12,\nIF(AND(C14=\"Weekly\",'FFN - Current Lifestyle'!$E$3=\"Yearly\"),D14*52,\nIF(AND(C14=\"Quarterly\",'FFN - Current Lifestyle'!$E$3=\"Yearly\"),D14*4,\n\nIF(AND(C14=\"Yearly\",'FFN - Current Lifestyle'!$E$3=\"Monthly\"),D14/12,\nIF(AND(C14=\"Monthly\",'FFN - Current Lifestyle'!$E$3=\"Monthly\"),D14,\nIF(AND(C14=\"Weekly\",'FFN - Current Lifestyle'!$E$3=\"Monthly\"),D14*(52/12),\nIF(AND(C14=\"Quarterly\",'FFN - Current Lifestyle'!$E$3=\"Monthly\"),D14/3,\n\nIF(AND(C14=\"Yearly\",'FFN - Current Lifestyle'!$E$3=\"Weekly\"),D14/52,\nIF(AND(C14=\"Monthly\",'FFN - Current Lifestyle'!$E$3=\"Weekly\"),D14*(12/52),\nIF(AND(C14=\"Weekly\",'FFN - Current Lifestyle'!$E$3=\"Weekly\"),D14,\nIF(AND(C14=\"Quarterly\",'FFN - Current Lifestyle'!$E$3=\"Weekly\"),(D14*4)/52,\n\n\"Enter Frequency\")))))))))))))","v":""}]
[null,"Mobile Phone",null,null,{"$f":"IF(D15=\"\",\"\",\n\nIF(AND(C15=\"Yearly\",'FFN - Current Lifestyle'!$E$3=\"Yearly\"),D15,\nIF(AND(C15=\"Monthly\",'FFN - Current Lifestyle'!$E$3=\"Yearly\"),D15*12,\nIF(AND(C15=\"Weekly\",'FFN - Current Lifestyle'!$E$3=\"Yearly\"),D15*52,\nIF(AND(C15=\"Quarterly\",'FFN - Current Lifestyle'!$E$3=\"Yearly\"),D15*4,\n\nIF(AND(C15=\"Yearly\",'FFN - Current Lifestyle'!$E$3=\"Monthly\"),D15/12,\nIF(AND(C15=\"Monthly\",'FFN - Current Lifestyle'!$E$3=\"Monthly\"),D15,\nIF(AND(C15=\"Weekly\",'FFN - Current Lifestyle'!$E$3=\"Monthly\"),D15*(52/12),\nIF(AND(C15=\"Quarterly\",'FFN - Current Lifestyle'!$E$3=\"Monthly\"),D15/3,\n\nIF(AND(C15=\"Yearly\",'FFN - Current Lifestyle'!$E$3=\"Weekly\"),D15/52,\nIF(AND(C15=\"Monthly\",'FFN - Current Lifestyle'!$E$3=\"Weekly\"),D15*(12/52),\nIF(AND(C15=\"Weekly\",'FFN - Current Lifestyle'!$E$3=\"Weekly\"),D15,\nIF(AND(C15=\"Quarterly\",'FFN - Current Lifestyle'!$E$3=\"Weekly\"),(D15*4)/52,\n\n\"Enter Frequency\")))))))))))))","v":""}]
[null,"Gas and Electricity",null,null,{"$f":"IF(D16=\"\",\"\",\n\nIF(AND(C16=\"Yearly\",'FFN - Current Lifestyle'!$E$3=\"Yearly\"),D16,\nIF(AND(C16=\"Monthly\",'FFN - Current Lifestyle'!$E$3=\"Yearly\"),D16*12,\nIF(AND(C16=\"Weekly\",'FFN - Current Lifestyle'!$E$3=\"Yearly\"),D16*52,\nIF(AND(C16=\"Quarterly\",'FFN - Current Lifestyle'!$E$3=\"Yearly\"),D16*4,\n\nIF(AND(C16=\"Yearly\",'FFN - Current Lifestyle'!$E$3=\"Monthly\"),D16/12,\nIF(AND(C16=\"Monthly\",'FFN - Current Lifestyle'!$E$3=\"Monthly\"),D16,\nIF(AND(C16=\"Weekly\",'FFN - Current Lifestyle'!$E$3=\"Monthly\"),D16*(52/12),\nIF(AND(C16=\"Quarterly\",'FFN - Current Lifestyle'!$E$3=\"Monthly\"),D16/3,\n\nIF(AND(C16=\"Yearly\",'FFN - Current Lifestyle'!$E$3=\"Weekly\"),D16/52,\nIF(AND(C16=\"Monthly\",'FFN - Current Lifestyle'!$E$3=\"Weekly\"),D16*(12/52),\nIF(AND(C16=\"Weekly\",'FFN - Current Lifestyle'!$E$3=\"Weekly\"),D16,\nIF(AND(C16=\"Quarterly\",'FFN - Current Lifestyle'!$E$3=\"Weekly\"),(D16*4)/52,\n\n\"Enter Frequency\")))))))))))))","v":""}]
[null,"Home Phone Bill",null,null,{"$f":"IF(D17=\"\",\"\",\n\nIF(AND(C17=\"Yearly\",'FFN - Current Lifestyle'!$E$3=\"Yearly\"),D17,\nIF(AND(C17=\"Monthly\",'FFN - Current Lifestyle'!$E$3=\"Yearly\"),D17*12,\nIF(AND(C17=\"Weekly\",'FFN - Current Lifestyle'!$E$3=\"Yearly\"),D17*52,\nIF(AND(C17=\"Quarterly\",'FFN - Current Lifestyle'!$E$3=\"Yearly\"),D17*4,\n\nIF(AND(C17=\"Yearly\",'FFN - Current Lifestyle'!$E$3=\"Monthly\"),D17/12,\nIF(AND(C17=\"Monthly\",'FFN - Current Lifestyle'!$E$3=\"Monthly\"),D17,\nIF(AND(C17=\"Weekly\",'FFN - Current Lifestyle'!$E$3=\"Monthly\"),D17*(52/12),\nIF(AND(C17=\"Quarterly\",'FFN - Current Lifestyle'!$E$3=\"Monthly\"),D17/3,\n\nIF(AND(C17=\"Yearly\",'FFN - Current Lifestyle'!$E$3=\"Weekly\"),D17/52,\nIF(AND(C17=\"Monthly\",'FFN - Current Lifestyle'!$E$3=\"Weekly\"),D17*(12/52),\nIF(AND(C17=\"Weekly\",'FFN - Current Lifestyle'!$E$3=\"Weekly\"),D17,\nIF(AND(C17=\"Quarterly\",'FFN - Current Lifestyle'!$E$3=\"Weekly\"),(D17*4)/52,\n\n\"Enter Frequency\")))))))))))))","v":""}]
[null,"Water Bill",null,null,{"$f":"IF(D18=\"\",\"\",\n\nIF(AND(C18=\"Yearly\",'FFN - Current Lifestyle'!$E$3=\"Yearly\"),D18,\nIF(AND(C18=\"Monthly\",'FFN - Current Lifestyle'!$E$3=\"Yearly\"),D18*12,\nIF(AND(C18=\"Weekly\",'FFN - Current Lifestyle'!$E$3=\"Yearly\"),D18*52,\nIF(AND(C18=\"Quarterly\",'FFN - Current Lifestyle'!$E$3=\"Yearly\"),D18*4,\n\nIF(AND(C18=\"Yearly\",'FFN - Current Lifestyle'!$E$3=\"Monthly\"),D18/12,\nIF(AND(C18=\"Monthly\",'FFN - Current Lifestyle'!$E$3=\"Monthly\"),D18,\nIF(AND(C18=\"Weekly\",'FFN - Current Lifestyle'!$E$3=\"Monthly\"),D18*(52/12),\nIF(AND(C18=\"Quarterly\",'FFN - Current Lifestyle'!$E$3=\"Monthly\"),D18/3,\n\nIF(AND(C18=\"Yearly\",'FFN - Current Lifestyle'!$E$3=\"Weekly\"),D18/52,\nIF(AND(C18=\"Monthly\",'FFN - Current Lifestyle'!$E$3=\"Weekly\"),D18*(12/52),\nIF(AND(C18=\"Weekly\",'FFN - Current Lifestyle'!$E$3=\"Weekly\"),D18,\nIF(AND(C18=\"Quarterly\",'FFN - Current Lifestyle'!$E$3=\"Weekly\"),(D18*4)/52,\n\n\"Enter Frequency\")))))))))))))","v":""}]
[null,"Car",null,null,{"$f":"IF(D19=\"\",\"\",\n\nIF(AND(C19=\"Yearly\",'FFN - Current Lifestyle'!$E$3=\"Yearly\"),D19,\nIF(AND(C19=\"Monthly\",'FFN - Current Lifestyle'!$E$3=\"Yearly\"),D19*12,\nIF(AND(C19=\"Weekly\",'FFN - Current Lifestyle'!$E$3=\"Yearly\"),D19*52,\nIF(AND(C19=\"Quarterly\",'FFN - Current Lifestyle'!$E$3=\"Yearly\"),D19*4,\n\nIF(AND(C19=\"Yearly\",'FFN - Current Lifestyle'!$E$3=\"Monthly\"),D19/12,\nIF(AND(C19=\"Monthly\",'FFN - Current Lifestyle'!$E$3=\"Monthly\"),D19,\nIF(AND(C19=\"Weekly\",'FFN - Current Lifestyle'!$E$3=\"Monthly\"),D19*(52/12),\nIF(AND(C19=\"Quarterly\",'FFN - Current Lifestyle'!$E$3=\"Monthly\"),D19/3,\n\nIF(AND(C19=\"Yearly\",'FFN - Current Lifestyle'!$E$3=\"Weekly\"),D19/52,\nIF(AND(C19=\"Monthly\",'FFN - Current Lifestyle'!$E$3=\"Weekly\"),D19*(12/52),\nIF(AND(C19=\"Weekly\",'FFN - Current Lifestyle'!$E$3=\"Weekly\"),D19,\nIF(AND(C19=\"Quarterly\",'FFN - Current Lifestyle'!$E$3=\"Weekly\"),(D19*4)/52,\n\n\"Enter Frequency\")))))))))))))","v":""}]
[null,"Car Lease",null,null,{"$f":"IF(D20=\"\",\"\",\n\nIF(AND(C20=\"Yearly\",'FFN - Current Lifestyle'!$E$3=\"Yearly\"),D20,\nIF(AND(C20=\"Monthly\",'FFN - Current Lifestyle'!$E$3=\"Yearly\"),D20*12,\nIF(AND(C20=\"Weekly\",'FFN - Current Lifestyle'!$E$3=\"Yearly\"),D20*52,\nIF(AND(C20=\"Quarterly\",'FFN - Current Lifestyle'!$E$3=\"Yearly\"),D20*4,\n\nIF(AND(C20=\"Yearly\",'FFN - Current Lifestyle'!$E$3=\"Monthly\"),D20/12,\nIF(AND(C20=\"Monthly\",'FFN - Current Lifestyle'!$E$3=\"Monthly\"),D20,\nIF(AND(C20=\"Weekly\",'FFN - Current Lifestyle'!$E$3=\"Monthly\"),D20*(52/12),\nIF(AND(C20=\"Quarterly\",'FFN - Current Lifestyle'!$E$3=\"Monthly\"),D20/3,\n\nIF(AND(C20=\"Yearly\",'FFN - Current Lifestyle'!$E$3=\"Weekly\"),D20/52,\nIF(AND(C20=\"Monthly\",'FFN - Current Lifestyle'!$E$3=\"Weekly\"),D20*(12/52),\nIF(AND(C20=\"Weekly\",'FFN - Current Lifestyle'!$E$3=\"Weekly\"),D20,\nIF(AND(C20=\"Quarterly\",'FFN - Current Lifestyle'!$E$3=\"Weekly\"),(D20*4)/52,\n\n\"Enter Frequency\")))))))))))))","v":""}]
[null,"Car Registration",null,null,{"$f":"IF(D21=\"\",\"\",\n\nIF(AND(C21=\"Yearly\",'FFN - Current Lifestyle'!$E$3=\"Yearly\"),D21,\nIF(AND(C21=\"Monthly\",'FFN - Current Lifestyle'!$E$3=\"Yearly\"),D21*12,\nIF(AND(C21=\"Weekly\",'FFN - Current Lifestyle'!$E$3=\"Yearly\"),D21*52,\nIF(AND(C21=\"Quarterly\",'FFN - Current Lifestyle'!$E$3=\"Yearly\"),D21*4,\n\nIF(AND(C21=\"Yearly\",'FFN - Current Lifestyle'!$E$3=\"Monthly\"),D21/12,\nIF(AND(C21=\"Monthly\",'FFN - Current Lifestyle'!$E$3=\"Monthly\"),D21,\nIF(AND(C21=\"Weekly\",'FFN - Current Lifestyle'!$E$3=\"Monthly\"),D21*(52/12),\nIF(AND(C21=\"Quarterly\",'FFN - Current Lifestyle'!$E$3=\"Monthly\"),D21/3,\n\nIF(AND(C21=\"Yearly\",'FFN - Current Lifestyle'!$E$3=\"Weekly\"),D21/52,\nIF(AND(C21=\"Monthly\",'FFN - Current Lifestyle'!$E$3=\"Weekly\"),D21*(12/52),\nIF(AND(C21=\"Weekly\",'FFN - Current Lifestyle'!$E$3=\"Weekly\"),D21,\nIF(AND(C21=\"Quarterly\",'FFN - Current Lifestyle'!$E$3=\"Weekly\"),(D21*4)/52,\n\n\"Enter Frequency\")))))))))))))","v":""}]
[null,"Car Repairs",null,null,{"$f":"IF(D22=\"\",\"\",\n\nIF(AND(C22=\"Yearly\",'FFN - Current Lifestyle'!$E$3=\"Yearly\"),D22,\nIF(AND(C22=\"Monthly\",'FFN - Current Lifestyle'!$E$3=\"Yearly\"),D22*12,\nIF(AND(C22=\"Weekly\",'FFN - Current Lifestyle'!$E$3=\"Yearly\"),D22*52,\nIF(AND(C22=\"Quarterly\",'FFN - Current Lifestyle'!$E$3=\"Yearly\"),D22*4,\n\nIF(AND(C22=\"Yearly\",'FFN - Current Lifestyle'!$E$3=\"Monthly\"),D22/12,\nIF(AND(C22=\"Monthly\",'FFN - Current Lifestyle'!$E$3=\"Monthly\"),D22,\nIF(AND(C22=\"Weekly\",'FFN - Current Lifestyle'!$E$3=\"Monthly\"),D22*(52/12),\nIF(AND(C22=\"Quarterly\",'FFN - Current Lifestyle'!$E$3=\"Monthly\"),D22/3,\n\nIF(AND(C22=\"Yearly\",'FFN - Current Lifestyle'!$E$3=\"Weekly\"),D22/52,\nIF(AND(C22=\"Monthly\",'FFN - Current Lifestyle'!$E$3=\"Weekly\"),D22*(12/52),\nIF(AND(C22=\"Weekly\",'FFN - Current Lifestyle'!$E$3=\"Weekly\"),D22,\nIF(AND(C22=\"Quarterly\",'FFN - Current Lifestyle'!$E$3=\"Weekly\"),(D22*4)/52,\n\n\"Enter Frequency\")))))))))))))","v":""}]
[null,"Insurance (Car)",null,null,{"$f":"IF(D23=\"\",\"\",\n\nIF(AND(C23=\"Yearly\",'FFN - Current Lifestyle'!$E$3=\"Yearly\"),D23,\nIF(AND(C23=\"Monthly\",'FFN - Current Lifestyle'!$E$3=\"Yearly\"),D23*12,\nIF(AND(C23=\"Weekly\",'FFN - Current Lifestyle'!$E$3=\"Yearly\"),D23*52,\nIF(AND(C23=\"Quarterly\",'FFN - Current Lifestyle'!$E$3=\"Yearly\"),D23*4,\n\nIF(AND(C23=\"Yearly\",'FFN - Current Lifestyle'!$E$3=\"Monthly\"),D23/12,\nIF(AND(C23=\"Monthly\",'FFN - Current Lifestyle'!$E$3=\"Monthly\"),D23,\nIF(AND(C23=\"Weekly\",'FFN - Current Lifestyle'!$E$3=\"Monthly\"),D23*(52/12),\nIF(AND(C23=\"Quarterly\",'FFN - Current Lifestyle'!$E$3=\"Monthly\"),D23/3,\n\nIF(AND(C23=\"Yearly\",'FFN - Current Lifestyle'!$E$3=\"Weekly\"),D23/52,\nIF(AND(C23=\"Monthly\",'FFN - Current Lifestyle'!$E$3=\"Weekly\"),D23*(12/52),\nIF(AND(C23=\"Weekly\",'FFN - Current Lifestyle'!$E$3=\"Weekly\"),D23,\nIF(AND(C23=\"Quarterly\",'FFN - Current Lifestyle'!$E$3=\"Weekly\"),(D23*4)/52,\n\n\"Enter Frequency\")))))))))))))","v":""}]
[null,"Petrol",null,null,{"$f":"IF(D24=\"\",\"\",\n\nIF(AND(C24=\"Yearly\",'FFN - Current Lifestyle'!$E$3=\"Yearly\"),D24,\nIF(AND(C24=\"Monthly\",'FFN - Current Lifestyle'!$E$3=\"Yearly\"),D24*12,\nIF(AND(C24=\"Weekly\",'FFN - Current Lifestyle'!$E$3=\"Yearly\"),D24*52,\nIF(AND(C24=\"Quarterly\",'FFN - Current Lifestyle'!$E$3=\"Yearly\"),D24*4,\n\nIF(AND(C24=\"Yearly\",'FFN - Current Lifestyle'!$E$3=\"Monthly\"),D24/12,\nIF(AND(C24=\"Monthly\",'FFN - Current Lifestyle'!$E$3=\"Monthly\"),D24,\nIF(AND(C24=\"Weekly\",'FFN - Current Lifestyle'!$E$3=\"Monthly\"),D24*(52/12),\nIF(AND(C24=\"Quarterly\",'FFN - Current Lifestyle'!$E$3=\"Monthly\"),D24/3,\n\nIF(AND(C24=\"Yearly\",'FFN - Current Lifestyle'!$E$3=\"Weekly\"),D24/52,\nIF(AND(C24=\"Monthly\",'FFN - Current Lifestyle'!$E$3=\"Weekly\"),D24*(12/52),\nIF(AND(C24=\"Weekly\",'FFN - Current Lifestyle'!$E$3=\"Weekly\"),D24,\nIF(AND(C24=\"Quarterly\",'FFN - Current Lifestyle'!$E$3=\"Weekly\"),(D24*4)/52,\n\n\"Enter Frequency\")))))))))))))","v":""}]
[null,"Lifestyle - Health",null,null,{"$f":"IF(D25=\"\",\"\",\n\nIF(AND(C25=\"Yearly\",'FFN - Current Lifestyle'!$E$3=\"Yearly\"),D25,\nIF(AND(C25=\"Monthly\",'FFN - Current Lifestyle'!$E$3=\"Yearly\"),D25*12,\nIF(AND(C25=\"Weekly\",'FFN - Current Lifestyle'!$E$3=\"Yearly\"),D25*52,\nIF(AND(C25=\"Quarterly\",'FFN - Current Lifestyle'!$E$3=\"Yearly\"),D25*4,\n\nIF(AND(C25=\"Yearly\",'FFN - Current Lifestyle'!$E$3=\"Monthly\"),D25/12,\nIF(AND(C25=\"Monthly\",'FFN - Current Lifestyle'!$E$3=\"Monthly\"),D25,\nIF(AND(C25=\"Weekly\",'FFN - Current Lifestyle'!$E$3=\"Monthly\"),D25*(52/12),\nIF(AND(C25=\"Quarterly\",'FFN - Current Lifestyle'!$E$3=\"Monthly\"),D25/3,\n\nIF(AND(C25=\"Yearly\",'FFN - Current Lifestyle'!$E$3=\"Weekly\"),D25/52,\nIF(AND(C25=\"Monthly\",'FFN - Current Lifestyle'!$E$3=\"Weekly\"),D25*(12/52),\nIF(AND(C25=\"Weekly\",'FFN - Current Lifestyle'!$E$3=\"Weekly\"),D25,\nIF(AND(C25=\"Quarterly\",'FFN - Current Lifestyle'!$E$3=\"Weekly\"),(D25*4)/52,\n\n\"Enter Frequency\")))))))))))))","v":""}]
[null,"Gym Membership",null,null,{"$f":"IF(D26=\"\",\"\",\n\nIF(AND(C26=\"Yearly\",'FFN - Current Lifestyle'!$E$3=\"Yearly\"),D26,\nIF(AND(C26=\"Monthly\",'FFN - Current Lifestyle'!$E$3=\"Yearly\"),D26*12,\nIF(AND(C26=\"Weekly\",'FFN - Current Lifestyle'!$E$3=\"Yearly\"),D26*52,\nIF(AND(C26=\"Quarterly\",'FFN - Current Lifestyle'!$E$3=\"Yearly\"),D26*4,\n\nIF(AND(C26=\"Yearly\",'FFN - Current Lifestyle'!$E$3=\"Monthly\"),D26/12,\nIF(AND(C26=\"Monthly\",'FFN - Current Lifestyle'!$E$3=\"Monthly\"),D26,\nIF(AND(C26=\"Weekly\",'FFN - Current Lifestyle'!$E$3=\"Monthly\"),D26*(52/12),\nIF(AND(C26=\"Quarterly\",'FFN - Current Lifestyle'!$E$3=\"Monthly\"),D26/3,\n\nIF(AND(C26=\"Yearly\",'FFN - Current Lifestyle'!$E$3=\"Weekly\"),D26/52,\nIF(AND(C26=\"Monthly\",'FFN - Current Lifestyle'!$E$3=\"Weekly\"),D26*(12/52),\nIF(AND(C26=\"Weekly\",'FFN - Current Lifestyle'!$E$3=\"Weekly\"),D26,\nIF(AND(C26=\"Quarterly\",'FFN - Current Lifestyle'!$E$3=\"Weekly\"),(D26*4)/52,\n\n\"Enter Frequency\")))))))))))))","v":""}]
[null,"Insurance (Health, Life etc.)",null,null,{"$f":"IF(D27=\"\",\"\",\n\nIF(AND(C27=\"Yearly\",'FFN - Current Lifestyle'!$E$3=\"Yearly\"),D27,\nIF(AND(C27=\"Monthly\",'FFN - Current Lifestyle'!$E$3=\"Yearly\"),D27*12,\nIF(AND(C27=\"Weekly\",'FFN - Current Lifestyle'!$E$3=\"Yearly\"),D27*52,\nIF(AND(C27=\"Quarterly\",'FFN - Current Lifestyle'!$E$3=\"Yearly\"),D27*4,\n\nIF(AND(C27=\"Yearly\",'FFN - Current Lifestyle'!$E$3=\"Monthly\"),D27/12,\nIF(AND(C27=\"Monthly\",'FFN - Current Lifestyle'!$E$3=\"Monthly\"),D27,\nIF(AND(C27=\"Weekly\",'FFN - Current Lifestyle'!$E$3=\"Monthly\"),D27*(52/12),\nIF(AND(C27=\"Quarterly\",'FFN - Current Lifestyle'!$E$3=\"Monthly\"),D27/3,\n\nIF(AND(C27=\"Yearly\",'FFN - Current Lifestyle'!$E$3=\"Weekly\"),D27/52,\nIF(AND(C27=\"Monthly\",'FFN - Current Lifestyle'!$E$3=\"Weekly\"),D27*(12/52),\nIF(AND(C27=\"Weekly\",'FFN - Current Lifestyle'!$E$3=\"Weekly\"),D27,\nIF(AND(C27=\"Quarterly\",'FFN - Current Lifestyle'!$E$3=\"Weekly\"),(D27*4)/52,\n\n\"Enter Frequency\")))))))))))))","v":""}]
[null,"Medical",null,null,{"$f":"IF(D28=\"\",\"\",\n\nIF(AND(C28=\"Yearly\",'FFN - Current Lifestyle'!$E$3=\"Yearly\"),D28,\nIF(AND(C28=\"Monthly\",'FFN - Current Lifestyle'!$E$3=\"Yearly\"),D28*12,\nIF(AND(C28=\"Weekly\",'FFN - Current Lifestyle'!$E$3=\"Yearly\"),D28*52,\nIF(AND(C28=\"Quarterly\",'FFN - Current Lifestyle'!$E$3=\"Yearly\"),D28*4,\n\nIF(AND(C28=\"Yearly\",'FFN - Current Lifestyle'!$E$3=\"Monthly\"),D28/12,\nIF(AND(C28=\"Monthly\",'FFN - Current Lifestyle'!$E$3=\"Monthly\"),D28,\nIF(AND(C28=\"Weekly\",'FFN - Current Lifestyle'!$E$3=\"Monthly\"),D28*(52/12),\nIF(AND(C28=\"Quarterly\",'FFN - Current Lifestyle'!$E$3=\"Monthly\"),D28/3,\n\nIF(AND(C28=\"Yearly\",'FFN - Current Lifestyle'!$E$3=\"Weekly\"),D28/52,\nIF(AND(C28=\"Monthly\",'FFN - Current Lifestyle'!$E$3=\"Weekly\"),D28*(12/52),\nIF(AND(C28=\"Weekly\",'FFN - Current Lifestyle'!$E$3=\"Weekly\"),D28,\nIF(AND(C28=\"Quarterly\",'FFN - Current Lifestyle'!$E$3=\"Weekly\"),(D28*4)/52,\n\n\"Enter Frequency\")))))))))))))","v":""}]
[null,"Dental",null,null,{"$f":"IF(D29=\"\",\"\",\n\nIF(AND(C29=\"Yearly\",'FFN - Current Lifestyle'!$E$3=\"Yearly\"),D29,\nIF(AND(C29=\"Monthly\",'FFN - Current Lifestyle'!$E$3=\"Yearly\"),D29*12,\nIF(AND(C29=\"Weekly\",'FFN - Current Lifestyle'!$E$3=\"Yearly\"),D29*52,\nIF(AND(C29=\"Quarterly\",'FFN - Current Lifestyle'!$E$3=\"Yearly\"),D29*4,\n\nIF(AND(C29=\"Yearly\",'FFN - Current Lifestyle'!$E$3=\"Monthly\"),D29/12,\nIF(AND(C29=\"Monthly\",'FFN - Current Lifestyle'!$E$3=\"Monthly\"),D29,\nIF(AND(C29=\"Weekly\",'FFN - Current Lifestyle'!$E$3=\"Monthly\"),D29*(52/12),\nIF(AND(C29=\"Quarterly\",'FFN - Current Lifestyle'!$E$3=\"Monthly\"),D29/3,\n\nIF(AND(C29=\"Yearly\",'FFN - Current Lifestyle'!$E$3=\"Weekly\"),D29/52,\nIF(AND(C29=\"Monthly\",'FFN - Current Lifestyle'!$E$3=\"Weekly\"),D29*(12/52),\nIF(AND(C29=\"Weekly\",'FFN - Current Lifestyle'!$E$3=\"Weekly\"),D29,\nIF(AND(C29=\"Quarterly\",'FFN - Current Lifestyle'!$E$3=\"Weekly\"),(D29*4)/52,\n\n\"Enter Frequency\")))))))))))))","v":""}]
[null,"Wellbeing",null,null,{"$f":"IF(D30=\"\",\"\",\n\nIF(AND(C30=\"Yearly\",'FFN - Current Lifestyle'!$E$3=\"Yearly\"),D30,\nIF(AND(C30=\"Monthly\",'FFN - Current Lifestyle'!$E$3=\"Yearly\"),D30*12,\nIF(AND(C30=\"Weekly\",'FFN - Current Lifestyle'!$E$3=\"Yearly\"),D30*52,\nIF(AND(C30=\"Quarterly\",'FFN - Current Lifestyle'!$E$3=\"Yearly\"),D30*4,\n\nIF(AND(C30=\"Yearly\",'FFN - Current Lifestyle'!$E$3=\"Monthly\"),D30/12,\nIF(AND(C30=\"Monthly\",'FFN - Current Lifestyle'!$E$3=\"Monthly\"),D30,\nIF(AND(C30=\"Weekly\",'FFN - Current Lifestyle'!$E$3=\"Monthly\"),D30*(52/12),\nIF(AND(C30=\"Quarterly\",'FFN - Current Lifestyle'!$E$3=\"Monthly\"),D30/3,\n\nIF(AND(C30=\"Yearly\",'FFN - Current Lifestyle'!$E$3=\"Weekly\"),D30/52,\nIF(AND(C30=\"Monthly\",'FFN - Current Lifestyle'!$E$3=\"Weekly\"),D30*(12/52),\nIF(AND(C30=\"Weekly\",'FFN - Current Lifestyle'!$E$3=\"Weekly\"),D30,\nIF(AND(C30=\"Quarterly\",'FFN - Current Lifestyle'!$E$3=\"Weekly\"),(D30*4)/52,\n\n\"Enter Frequency\")))))))))))))","v":""}]
[null,"Lifestyle - Entertainment",null,null,{"$f":"IF(D31=\"\",\"\",\n\nIF(AND(C31=\"Yearly\",'FFN - Current Lifestyle'!$E$3=\"Yearly\"),D31,\nIF(AND(C31=\"Monthly\",'FFN - Current Lifestyle'!$E$3=\"Yearly\"),D31*12,\nIF(AND(C31=\"Weekly\",'FFN - Current Lifestyle'!$E$3=\"Yearly\"),D31*52,\nIF(AND(C31=\"Quarterly\",'FFN - Current Lifestyle'!$E$3=\"Yearly\"),D31*4,\n\nIF(AND(C31=\"Yearly\",'FFN - Current Lifestyle'!$E$3=\"Monthly\"),D31/12,\nIF(AND(C31=\"Monthly\",'FFN - Current Lifestyle'!$E$3=\"Monthly\"),D31,\nIF(AND(C31=\"Weekly\",'FFN - Current Lifestyle'!$E$3=\"Monthly\"),D31*(52/12),\nIF(AND(C31=\"Quarterly\",'FFN - Current Lifestyle'!$E$3=\"Monthly\"),D31/3,\n\nIF(AND(C31=\"Yearly\",'FFN - Current Lifestyle'!$E$3=\"Weekly\"),D31/52,\nIF(AND(C31=\"Monthly\",'FFN - Current Lifestyle'!$E$3=\"Weekly\"),D31*(12/52),\nIF(AND(C31=\"Weekly\",'FFN - Current Lifestyle'!$E$3=\"Weekly\"),D31,\nIF(AND(C31=\"Quarterly\",'FFN - Current Lifestyle'!$E$3=\"Weekly\"),(D31*4)/52,\n\n\"Enter Frequency\")))))))))))))","v":""}]
[null,"Apps and Music",null,null,{"$f":"IF(D32=\"\",\"\",\n\nIF(AND(C32=\"Yearly\",'FFN - Current Lifestyle'!$E$3=\"Yearly\"),D32,\nIF(AND(C32=\"Monthly\",'FFN - Current Lifestyle'!$E$3=\"Yearly\"),D32*12,\nIF(AND(C32=\"Weekly\",'FFN - Current Lifestyle'!$E$3=\"Yearly\"),D32*52,\nIF(AND(C32=\"Quarterly\",'FFN - Current Lifestyle'!$E$3=\"Yearly\"),D32*4,\n\nIF(AND(C32=\"Yearly\",'FFN - Current Lifestyle'!$E$3=\"Monthly\"),D32/12,\nIF(AND(C32=\"Monthly\",'FFN - Current Lifestyle'!$E$3=\"Monthly\"),D32,\nIF(AND(C32=\"Weekly\",'FFN - Current Lifestyle'!$E$3=\"Monthly\"),D32*(52/12),\nIF(AND(C32=\"Quarterly\",'FFN - Current Lifestyle'!$E$3=\"Monthly\"),D32/3,\n\nIF(AND(C32=\"Yearly\",'FFN - Current Lifestyle'!$E$3=\"Weekly\"),D32/52,\nIF(AND(C32=\"Monthly\",'FFN - Current Lifestyle'!$E$3=\"Weekly\"),D32*(12/52),\nIF(AND(C32=\"Weekly\",'FFN - Current Lifestyle'!$E$3=\"Weekly\"),D32,\nIF(AND(C32=\"Quarterly\",'FFN - Current Lifestyle'!$E$3=\"Weekly\"),(D32*4)/52,\n\n\"Enter Frequency\")))))))))))))","v":""}]
[null,"Subscriptions",null,null,{"$f":"IF(D33=\"\",\"\",\n\nIF(AND(C33=\"Yearly\",'FFN - Current Lifestyle'!$E$3=\"Yearly\"),D33,\nIF(AND(C33=\"Monthly\",'FFN - Current Lifestyle'!$E$3=\"Yearly\"),D33*12,\nIF(AND(C33=\"Weekly\",'FFN - Current Lifestyle'!$E$3=\"Yearly\"),D33*52,\nIF(AND(C33=\"Quarterly\",'FFN - Current Lifestyle'!$E$3=\"Yearly\"),D33*4,\n\nIF(AND(C33=\"Yearly\",'FFN - Current Lifestyle'!$E$3=\"Monthly\"),D33/12,\nIF(AND(C33=\"Monthly\",'FFN - Current Lifestyle'!$E$3=\"Monthly\"),D33,\nIF(AND(C33=\"Weekly\",'FFN - Current Lifestyle'!$E$3=\"Monthly\"),D33*(52/12),\nIF(AND(C33=\"Quarterly\",'FFN - Current Lifestyle'!$E$3=\"Monthly\"),D33/3,\n\nIF(AND(C33=\"Yearly\",'FFN - Current Lifestyle'!$E$3=\"Weekly\"),D33/52,\nIF(AND(C33=\"Monthly\",'FFN - Current Lifestyle'!$E$3=\"Weekly\"),D33*(12/52),\nIF(AND(C33=\"Weekly\",'FFN - Current Lifestyle'!$E$3=\"Weekly\"),D33,\nIF(AND(C33=\"Quarterly\",'FFN - Current Lifestyle'!$E$3=\"Weekly\"),(D33*4)/52,\n\n\"Enter Frequency\")))))))))))))","v":""}]
[null,"Education",null,null,{"$f":"IF(D34=\"\",\"\",\n\nIF(AND(C34=\"Yearly\",'FFN - Current Lifestyle'!$E$3=\"Yearly\"),D34,\nIF(AND(C34=\"Monthly\",'FFN - Current Lifestyle'!$E$3=\"Yearly\"),D34*12,\nIF(AND(C34=\"Weekly\",'FFN - Current Lifestyle'!$E$3=\"Yearly\"),D34*52,\nIF(AND(C34=\"Quarterly\",'FFN - Current Lifestyle'!$E$3=\"Yearly\"),D34*4,\n\nIF(AND(C34=\"Yearly\",'FFN - Current Lifestyle'!$E$3=\"Monthly\"),D34/12,\nIF(AND(C34=\"Monthly\",'FFN - Current Lifestyle'!$E$3=\"Monthly\"),D34,\nIF(AND(C34=\"Weekly\",'FFN - Current Lifestyle'!$E$3=\"Monthly\"),D34*(52/12),\nIF(AND(C34=\"Quarterly\",'FFN - Current Lifestyle'!$E$3=\"Monthly\"),D34/3,\n\nIF(AND(C34=\"Yearly\",'FFN - Current Lifestyle'!$E$3=\"Weekly\"),D34/52,\nIF(AND(C34=\"Monthly\",'FFN - Current Lifestyle'!$E$3=\"Weekly\"),D34*(12/52),\nIF(AND(C34=\"Weekly\",'FFN - Current Lifestyle'!$E$3=\"Weekly\"),D34,\nIF(AND(C34=\"Quarterly\",'FFN - Current Lifestyle'!$E$3=\"Weekly\"),(D34*4)/52,\n\n\"Enter Frequency\")))))))))))))","v":""}]
[null,"Memberships",null,null,{"$f":"IF(D35=\"\",\"\",\n\nIF(AND(C35=\"Yearly\",'FFN - Current Lifestyle'!$E$3=\"Yearly\"),D35,\nIF(AND(C35=\"Monthly\",'FFN - Current Lifestyle'!$E$3=\"Yearly\"),D35*12,\nIF(AND(C35=\"Weekly\",'FFN - Current Lifestyle'!$E$3=\"Yearly\"),D35*52,\nIF(AND(C35=\"Quarterly\",'FFN - Current Lifestyle'!$E$3=\"Yearly\"),D35*4,\n\nIF(AND(C35=\"Yearly\",'FFN - Current Lifestyle'!$E$3=\"Monthly\"),D35/12,\nIF(AND(C35=\"Monthly\",'FFN - Current Lifestyle'!$E$3=\"Monthly\"),D35,\nIF(AND(C35=\"Weekly\",'FFN - Current Lifestyle'!$E$3=\"Monthly\"),D35*(52/12),\nIF(AND(C35=\"Quarterly\",'FFN - Current Lifestyle'!$E$3=\"Monthly\"),D35/3,\n\nIF(AND(C35=\"Yearly\",'FFN - Current Lifestyle'!$E$3=\"Weekly\"),D35/52,\nIF(AND(C35=\"Monthly\",'FFN - Current Lifestyle'!$E$3=\"Weekly\"),D35*(12/52),\nIF(AND(C35=\"Weekly\",'FFN - Current Lifestyle'!$E$3=\"Weekly\"),D35,\nIF(AND(C35=\"Quarterly\",'FFN - Current Lifestyle'!$E$3=\"Weekly\"),(D35*4)/52,\n\n\"Enter Frequency\")))))))))))))","v":""}]
[null,"Holidays",null,null,{"$f":"IF(D36=\"\",\"\",\n\nIF(AND(C36=\"Yearly\",'FFN - Current Lifestyle'!$E$3=\"Yearly\"),D36,\nIF(AND(C36=\"Monthly\",'FFN - Current Lifestyle'!$E$3=\"Yearly\"),D36*12,\nIF(AND(C36=\"Weekly\",'FFN - Current Lifestyle'!$E$3=\"Yearly\"),D36*52,\nIF(AND(C36=\"Quarterly\",'FFN - Current Lifestyle'!$E$3=\"Yearly\"),D36*4,\n\nIF(AND(C36=\"Yearly\",'FFN - Current Lifestyle'!$E$3=\"Monthly\"),D36/12,\nIF(AND(C36=\"Monthly\",'FFN - Current Lifestyle'!$E$3=\"Monthly\"),D36,\nIF(AND(C36=\"Weekly\",'FFN - Current Lifestyle'!$E$3=\"Monthly\"),D36*(52/12),\nIF(AND(C36=\"Quarterly\",'FFN - Current Lifestyle'!$E$3=\"Monthly\"),D36/3,\n\nIF(AND(C36=\"Yearly\",'FFN - Current Lifestyle'!$E$3=\"Weekly\"),D36/52,\nIF(AND(C36=\"Monthly\",'FFN - Current Lifestyle'!$E$3=\"Weekly\"),D36*(12/52),\nIF(AND(C36=\"Weekly\",'FFN - Current Lifestyle'!$E$3=\"Weekly\"),D36,\nIF(AND(C36=\"Quarterly\",'FFN - Current Lifestyle'!$E$3=\"Weekly\"),(D36*4)/52,\n\n\"Enter Frequency\")))))))))))))","v":""}]
[null,"Presents",null,null,{"$f":"IF(D37=\"\",\"\",\n\nIF(AND(C37=\"Yearly\",'FFN - Current Lifestyle'!$E$3=\"Yearly\"),D37,\nIF(AND(C37=\"Monthly\",'FFN - Current Lifestyle'!$E$3=\"Yearly\"),D37*12,\nIF(AND(C37=\"Weekly\",'FFN - Current Lifestyle'!$E$3=\"Yearly\"),D37*52,\nIF(AND(C37=\"Quarterly\",'FFN - Current Lifestyle'!$E$3=\"Yearly\"),D37*4,\n\nIF(AND(C37=\"Yearly\",'FFN - Current Lifestyle'!$E$3=\"Monthly\"),D37/12,\nIF(AND(C37=\"Monthly\",'FFN - Current Lifestyle'!$E$3=\"Monthly\"),D37,\nIF(AND(C37=\"Weekly\",'FFN - Current Lifestyle'!$E$3=\"Monthly\"),D37*(52/12),\nIF(AND(C37=\"Quarterly\",'FFN - Current Lifestyle'!$E$3=\"Monthly\"),D37/3,\n\nIF(AND(C37=\"Yearly\",'FFN - Current Lifestyle'!$E$3=\"Weekly\"),D37/52,\nIF(AND(C37=\"Monthly\",'FFN - Current Lifestyle'!$E$3=\"Weekly\"),D37*(12/52),\nIF(AND(C37=\"Weekly\",'FFN - Current Lifestyle'!$E$3=\"Weekly\"),D37,\nIF(AND(C37=\"Quarterly\",'FFN - Current Lifestyle'!$E$3=\"Weekly\"),(D37*4)/52,\n\n\"Enter Frequency\")))))))))))))","v":""}]
[null,"Debt",null,null,{"$f":"IF(D38=\"\",\"\",\n\nIF(AND(C38=\"Yearly\",'FFN - Current Lifestyle'!$E$3=\"Yearly\"),D38,\nIF(AND(C38=\"Monthly\",'FFN - Current Lifestyle'!$E$3=\"Yearly\"),D38*12,\nIF(AND(C38=\"Weekly\",'FFN - Current Lifestyle'!$E$3=\"Yearly\"),D38*52,\nIF(AND(C38=\"Quarterly\",'FFN - Current Lifestyle'!$E$3=\"Yearly\"),D38*4,\n\nIF(AND(C38=\"Yearly\",'FFN - Current Lifestyle'!$E$3=\"Monthly\"),D38/12,\nIF(AND(C38=\"Monthly\",'FFN - Current Lifestyle'!$E$3=\"Monthly\"),D38,\nIF(AND(C38=\"Weekly\",'FFN - Current Lifestyle'!$E$3=\"Monthly\"),D38*(52/12),\nIF(AND(C38=\"Quarterly\",'FFN - Current Lifestyle'!$E$3=\"Monthly\"),D38/3,\n\nIF(AND(C38=\"Yearly\",'FFN - Current Lifestyle'!$E$3=\"Weekly\"),D38/52,\nIF(AND(C38=\"Monthly\",'FFN - Current Lifestyle'!$E$3=\"Weekly\"),D38*(12/52),\nIF(AND(C38=\"Weekly\",'FFN - Current Lifestyle'!$E$3=\"Weekly\"),D38,\nIF(AND(C38=\"Quarterly\",'FFN - Current Lifestyle'!$E$3=\"Weekly\"),(D38*4)/52,\n\n\"Enter Frequency\")))))))))))))","v":""}]
[null,"Personal Loans",null,null,{"$f":"IF(D39=\"\",\"\",\n\nIF(AND(C39=\"Yearly\",'FFN - Current Lifestyle'!$E$3=\"Yearly\"),D39,\nIF(AND(C39=\"Monthly\",'FFN - Current Lifestyle'!$E$3=\"Yearly\"),D39*12,\nIF(AND(C39=\"Weekly\",'FFN - Current Lifestyle'!$E$3=\"Yearly\"),D39*52,\nIF(AND(C39=\"Quarterly\",'FFN - Current Lifestyle'!$E$3=\"Yearly\"),D39*4,\n\nIF(AND(C39=\"Yearly\",'FFN - Current Lifestyle'!$E$3=\"Monthly\"),D39/12,\nIF(AND(C39=\"Monthly\",'FFN - Current Lifestyle'!$E$3=\"Monthly\"),D39,\nIF(AND(C39=\"Weekly\",'FFN - Current Lifestyle'!$E$3=\"Monthly\"),D39*(52/12),\nIF(AND(C39=\"Quarterly\",'FFN - Current Lifestyle'!$E$3=\"Monthly\"),D39/3,\n\nIF(AND(C39=\"Yearly\",'FFN - Current Lifestyle'!$E$3=\"Weekly\"),D39/52,\nIF(AND(C39=\"Monthly\",'FFN - Current Lifestyle'!$E$3=\"Weekly\"),D39*(12/52),\nIF(AND(C39=\"Weekly\",'FFN - Current Lifestyle'!$E$3=\"Weekly\"),D39,\nIF(AND(C39=\"Quarterly\",'FFN - Current Lifestyle'!$E$3=\"Weekly\"),(D39*4)/52,\n\n\"Enter Frequency\")))))))))))))","v":""}]
[null,"Credit Cards",null,null,{"$f":"IF(D40=\"\",\"\",\n\nIF(AND(C40=\"Yearly\",'FFN - Current Lifestyle'!$E$3=\"Yearly\"),D40,\nIF(AND(C40=\"Monthly\",'FFN - Current Lifestyle'!$E$3=\"Yearly\"),D40*12,\nIF(AND(C40=\"Weekly\",'FFN - Current Lifestyle'!$E$3=\"Yearly\"),D40*52,\nIF(AND(C40=\"Quarterly\",'FFN - Current Lifestyle'!$E$3=\"Yearly\"),D40*4,\n\nIF(AND(C40=\"Yearly\",'FFN - Current Lifestyle'!$E$3=\"Monthly\"),D40/12,\nIF(AND(C40=\"Monthly\",'FFN - Current Lifestyle'!$E$3=\"Monthly\"),D40,\nIF(AND(C40=\"Weekly\",'FFN - Current Lifestyle'!$E$3=\"Monthly\"),D40*(52/12),\nIF(AND(C40=\"Quarterly\",'FFN - Current Lifestyle'!$E$3=\"Monthly\"),D40/3,\n\nIF(AND(C40=\"Yearly\",'FFN - Current Lifestyle'!$E$3=\"Weekly\"),D40/52,\nIF(AND(C40=\"Monthly\",'FFN - Current Lifestyle'!$E$3=\"Weekly\"),D40*(12/52),\nIF(AND(C40=\"Weekly\",'FFN - Current Lifestyle'!$E$3=\"Weekly\"),D40,\nIF(AND(C40=\"Quarterly\",'FFN - Current Lifestyle'!$E$3=\"Weekly\"),(D40*4)/52,\n\n\"Enter Frequency\")))))))))))))","v":""}]
[null,"Other Expenses",null,null,{"$f":"IF(D41=\"\",\"\",\n\nIF(AND(C41=\"Yearly\",'FFN - Current Lifestyle'!$E$3=\"Yearly\"),D41,\nIF(AND(C41=\"Monthly\",'FFN - Current Lifestyle'!$E$3=\"Yearly\"),D41*12,\nIF(AND(C41=\"Weekly\",'FFN - Current Lifestyle'!$E$3=\"Yearly\"),D41*52,\nIF(AND(C41=\"Quarterly\",'FFN - Current Lifestyle'!$E$3=\"Yearly\"),D41*4,\n\nIF(AND(C41=\"Yearly\",'FFN - Current Lifestyle'!$E$3=\"Monthly\"),D41/12,\nIF(AND(C41=\"Monthly\",'FFN - Current Lifestyle'!$E$3=\"Monthly\"),D41,\nIF(AND(C41=\"Weekly\",'FFN - Current Lifestyle'!$E$3=\"Monthly\"),D41*(52/12),\nIF(AND(C41=\"Quarterly\",'FFN - Current Lifestyle'!$E$3=\"Monthly\"),D41/3,\n\nIF(AND(C41=\"Yearly\",'FFN - Current Lifestyle'!$E$3=\"Weekly\"),D41/52,\nIF(AND(C41=\"Monthly\",'FFN - Current Lifestyle'!$E$3=\"Weekly\"),D41*(12/52),\nIF(AND(C41=\"Weekly\",'FFN - Current Lifestyle'!$E$3=\"Weekly\"),D41,\nIF(AND(C41=\"Quarterly\",'FFN - Current Lifestyle'!$E$3=\"Weekly\"),(D41*4)/52,\n\n\"Enter Frequency\")))))))))))))","v":""}]
[null,null,null,null,{"$f":"IF(D42=\"\",\"\",\n\nIF(AND(C42=\"Yearly\",'FFN - Current Lifestyle'!$E$3=\"Yearly\"),D42,\nIF(AND(C42=\"Monthly\",'FFN - Current Lifestyle'!$E$3=\"Yearly\"),D42*12,\nIF(AND(C42=\"Weekly\",'FFN - Current Lifestyle'!$E$3=\"Yearly\"),D42*52,\nIF(AND(C42=\"Quarterly\",'FFN - Current Lifestyle'!$E$3=\"Yearly\"),D42*4,\n\nIF(AND(C42=\"Yearly\",'FFN - Current Lifestyle'!$E$3=\"Monthly\"),D42/12,\nIF(AND(C42=\"Monthly\",'FFN - Current Lifestyle'!$E$3=\"Monthly\"),D42,\nIF(AND(C42=\"Weekly\",'FFN - Current Lifestyle'!$E$3=\"Monthly\"),D42*(52/12),\nIF(AND(C42=\"Quarterly\",'FFN - Current Lifestyle'!$E$3=\"Monthly\"),D42/3,\n\nIF(AND(C42=\"Yearly\",'FFN - Current Lifestyle'!$E$3=\"Weekly\"),D42/52,\nIF(AND(C42=\"Monthly\",'FFN - Current Lifestyle'!$E$3=\"Weekly\"),D42*(12/52),\nIF(AND(C42=\"Weekly\",'FFN - Current Lifestyle'!$E$3=\"Weekly\"),D42,\nIF(AND(C42=\"Quarterly\",'FFN - Current Lifestyle'!$E$3=\"Weekly\"),(D42*4)/52,\n\n\"Enter Frequency\")))))))))))))","v":""}]
[null,null,null,null,{"$f":"IF(D43=\"\",\"\",\n\nIF(AND(C43=\"Yearly\",'FFN - Current Lifestyle'!$E$3=\"Yearly\"),D43,\nIF(AND(C43=\"Monthly\",'FFN - Current Lifestyle'!$E$3=\"Yearly\"),D43*12,\nIF(AND(C43=\"Weekly\",'FFN - Current Lifestyle'!$E$3=\"Yearly\"),D43*52,\nIF(AND(C43=\"Quarterly\",'FFN - Current Lifestyle'!$E$3=\"Yearly\"),D43*4,\n\nIF(AND(C43=\"Yearly\",'FFN - Current Lifestyle'!$E$3=\"Monthly\"),D43/12,\nIF(AND(C43=\"Monthly\",'FFN - Current Lifestyle'!$E$3=\"Monthly\"),D43,\nIF(AND(C43=\"Weekly\",'FFN - Current Lifestyle'!$E$3=\"Monthly\"),D43*(52/12),\nIF(AND(C43=\"Quarterly\",'FFN - Current Lifestyle'!$E$3=\"Monthly\"),D43/3,\n\nIF(AND(C43=\"Yearly\",'FFN - Current Lifestyle'!$E$3=\"Weekly\"),D43/52,\nIF(AND(C43=\"Monthly\",'FFN - Current Lifestyle'!$E$3=\"Weekly\"),D43*(12/52),\nIF(AND(C43=\"Weekly\",'FFN - Current Lifestyle'!$E$3=\"Weekly\"),D43,\nIF(AND(C43=\"Quarterly\",'FFN - Current Lifestyle'!$E$3=\"Weekly\"),(D43*4)/52,\n\n\"Enter Frequency\")))))))))))))","v":""}]
[null,null,null,null,{"$f":"IF(D44=\"\",\"\",\n\nIF(AND(C44=\"Yearly\",'FFN - Current Lifestyle'!$E$3=\"Yearly\"),D44,\nIF(AND(C44=\"Monthly\",'FFN - Current Lifestyle'!$E$3=\"Yearly\"),D44*12,\nIF(AND(C44=\"Weekly\",'FFN - Current Lifestyle'!$E$3=\"Yearly\"),D44*52,\nIF(AND(C44=\"Quarterly\",'FFN - Current Lifestyle'!$E$3=\"Yearly\"),D44*4,\n\nIF(AND(C44=\"Yearly\",'FFN - Current Lifestyle'!$E$3=\"Monthly\"),D44/12,\nIF(AND(C44=\"Monthly\",'FFN - Current Lifestyle'!$E$3=\"Monthly\"),D44,\nIF(AND(C44=\"Weekly\",'FFN - Current Lifestyle'!$E$3=\"Monthly\"),D44*(52/12),\nIF(AND(C44=\"Quarterly\",'FFN - Current Lifestyle'!$E$3=\"Monthly\"),D44/3,\n\nIF(AND(C44=\"Yearly\",'FFN - Current Lifestyle'!$E$3=\"Weekly\"),D44/52,\nIF(AND(C44=\"Monthly\",'FFN - Current Lifestyle'!$E$3=\"Weekly\"),D44*(12/52),\nIF(AND(C44=\"Weekly\",'FFN - Current Lifestyle'!$E$3=\"Weekly\"),D44,\nIF(AND(C44=\"Quarterly\",'FFN - Current Lifestyle'!$E$3=\"Weekly\"),(D44*4)/52,\n\n\"Enter Frequency\")))))))))))))","v":""}]
[null,null,null,null,{"$f":"IF(D45=\"\",\"\",\n\nIF(AND(C45=\"Yearly\",'FFN - Current Lifestyle'!$E$3=\"Yearly\"),D45,\nIF(AND(C45=\"Monthly\",'FFN - Current Lifestyle'!$E$3=\"Yearly\"),D45*12,\nIF(AND(C45=\"Weekly\",'FFN - Current Lifestyle'!$E$3=\"Yearly\"),D45*52,\nIF(AND(C45=\"Quarterly\",'FFN - Current Lifestyle'!$E$3=\"Yearly\"),D45*4,\n\nIF(AND(C45=\"Yearly\",'FFN - Current Lifestyle'!$E$3=\"Monthly\"),D45/12,\nIF(AND(C45=\"Monthly\",'FFN - Current Lifestyle'!$E$3=\"Monthly\"),D45,\nIF(AND(C45=\"Weekly\",'FFN - Current Lifestyle'!$E$3=\"Monthly\"),D45*(52/12),\nIF(AND(C45=\"Quarterly\",'FFN - Current Lifestyle'!$E$3=\"Monthly\"),D45/3,\n\nIF(AND(C45=\"Yearly\",'FFN - Current Lifestyle'!$E$3=\"Weekly\"),D45/52,\nIF(AND(C45=\"Monthly\",'FFN - Current Lifestyle'!$E$3=\"Weekly\"),D45*(12/52),\nIF(AND(C45=\"Weekly\",'FFN - Current Lifestyle'!$E$3=\"Weekly\"),D45,\nIF(AND(C45=\"Quarterly\",'FFN - Current Lifestyle'!$E$3=\"Weekly\"),(D45*4)/52,\n\n\"Enter Frequency\")))))))))))))","v":""}]
[null,null,null,null,{"$f":"IF(D46=\"\",\"\",\n\nIF(AND(C46=\"Yearly\",'FFN - Current Lifestyle'!$E$3=\"Yearly\"),D46,\nIF(AND(C46=\"Monthly\",'FFN - Current Lifestyle'!$E$3=\"Yearly\"),D46*12,\nIF(AND(C46=\"Weekly\",'FFN - Current Lifestyle'!$E$3=\"Yearly\"),D46*52,\nIF(AND(C46=\"Quarterly\",'FFN - Current Lifestyle'!$E$3=\"Yearly\"),D46*4,\n\nIF(AND(C46=\"Yearly\",'FFN - Current Lifestyle'!$E$3=\"Monthly\"),D46/12,\nIF(AND(C46=\"Monthly\",'FFN - Current Lifestyle'!$E$3=\"Monthly\"),D46,\nIF(AND(C46=\"Weekly\",'FFN - Current Lifestyle'!$E$3=\"Monthly\"),D46*(52/12),\nIF(AND(C46=\"Quarterly\",'FFN - Current Lifestyle'!$E$3=\"Monthly\"),D46/3,\n\nIF(AND(C46=\"Yearly\",'FFN - Current Lifestyle'!$E$3=\"Weekly\"),D46/52,\nIF(AND(C46=\"Monthly\",'FFN - Current Lifestyle'!$E$3=\"Weekly\"),D46*(12/52),\nIF(AND(C46=\"Weekly\",'FFN - Current Lifestyle'!$E$3=\"Weekly\"),D46,\nIF(AND(C46=\"Quarterly\",'FFN - Current Lifestyle'!$E$3=\"Weekly\"),(D46*4)/52,\n\n\"Enter Frequency\")))))))))))))","v":""}]
[null,null,null,null,{"$f":"IF(D47=\"\",\"\",\n\nIF(AND(C47=\"Yearly\",'FFN - Current Lifestyle'!$E$3=\"Yearly\"),D47,\nIF(AND(C47=\"Monthly\",'FFN - Current Lifestyle'!$E$3=\"Yearly\"),D47*12,\nIF(AND(C47=\"Weekly\",'FFN - Current Lifestyle'!$E$3=\"Yearly\"),D47*52,\nIF(AND(C47=\"Quarterly\",'FFN - Current Lifestyle'!$E$3=\"Yearly\"),D47*4,\n\nIF(AND(C47=\"Yearly\",'FFN - Current Lifestyle'!$E$3=\"Monthly\"),D47/12,\nIF(AND(C47=\"Monthly\",'FFN - Current Lifestyle'!$E$3=\"Monthly\"),D47,\nIF(AND(C47=\"Weekly\",'FFN - Current Lifestyle'!$E$3=\"Monthly\"),D47*(52/12),\nIF(AND(C47=\"Quarterly\",'FFN - Current Lifestyle'!$E$3=\"Monthly\"),D47/3,\n\nIF(AND(C47=\"Yearly\",'FFN - Current Lifestyle'!$E$3=\"Weekly\"),D47/52,\nIF(AND(C47=\"Monthly\",'FFN - Current Lifestyle'!$E$3=\"Weekly\"),D47*(12/52),\nIF(AND(C47=\"Weekly\",'FFN - Current Lifestyle'!$E$3=\"Weekly\"),D47,\nIF(AND(C47=\"Quarterly\",'FFN - Current Lifestyle'!$E$3=\"Weekly\"),(D47*4)/52,\n\n\"Enter Frequency\")))))))))))))","v":""}]
[null,null,null,null,{"$f":"IF(D48=\"\",\"\",\n\nIF(AND(C48=\"Yearly\",'FFN - Current Lifestyle'!$E$3=\"Yearly\"),D48,\nIF(AND(C48=\"Monthly\",'FFN - Current Lifestyle'!$E$3=\"Yearly\"),D48*12,\nIF(AND(C48=\"Weekly\",'FFN - Current Lifestyle'!$E$3=\"Yearly\"),D48*52,\nIF(AND(C48=\"Quarterly\",'FFN - Current Lifestyle'!$E$3=\"Yearly\"),D48*4,\n\nIF(AND(C48=\"Yearly\",'FFN - Current Lifestyle'!$E$3=\"Monthly\"),D48/12,\nIF(AND(C48=\"Monthly\",'FFN - Current Lifestyle'!$E$3=\"Monthly\"),D48,\nIF(AND(C48=\"Weekly\",'FFN - Current Lifestyle'!$E$3=\"Monthly\"),D48*(52/12),\nIF(AND(C48=\"Quarterly\",'FFN - Current Lifestyle'!$E$3=\"Monthly\"),D48/3,\n\nIF(AND(C48=\"Yearly\",'FFN - Current Lifestyle'!$E$3=\"Weekly\"),D48/52,\nIF(AND(C48=\"Monthly\",'FFN - Current Lifestyle'!$E$3=\"Weekly\"),D48*(12/52),\nIF(AND(C48=\"Weekly\",'FFN - Current Lifestyle'!$E$3=\"Weekly\"),D48,\nIF(AND(C48=\"Quarterly\",'FFN - Current Lifestyle'!$E$3=\"Weekly\"),(D48*4)/52,\n\n\"Enter Frequency\")))))))))))))","v":""}]
[null,null,null,null,{"$f":"IF(D49=\"\",\"\",\n\nIF(AND(C49=\"Yearly\",'FFN - Current Lifestyle'!$E$3=\"Yearly\"),D49,\nIF(AND(C49=\"Monthly\",'FFN - Current Lifestyle'!$E$3=\"Yearly\"),D49*12,\nIF(AND(C49=\"Weekly\",'FFN - Current Lifestyle'!$E$3=\"Yearly\"),D49*52,\nIF(AND(C49=\"Quarterly\",'FFN - Current Lifestyle'!$E$3=\"Yearly\"),D49*4,\n\nIF(AND(C49=\"Yearly\",'FFN - Current Lifestyle'!$E$3=\"Monthly\"),D49/12,\nIF(AND(C49=\"Monthly\",'FFN - Current Lifestyle'!$E$3=\"Monthly\"),D49,\nIF(AND(C49=\"Weekly\",'FFN - Current Lifestyle'!$E$3=\"Monthly\"),D49*(52/12),\nIF(AND(C49=\"Quarterly\",'FFN - Current Lifestyle'!$E$3=\"Monthly\"),D49/3,\n\nIF(AND(C49=\"Yearly\",'FFN - Current Lifestyle'!$E$3=\"Weekly\"),D49/52,\nIF(AND(C49=\"Monthly\",'FFN - Current Lifestyle'!$E$3=\"Weekly\"),D49*(12/52),\nIF(AND(C49=\"Weekly\",'FFN - Current Lifestyle'!$E$3=\"Weekly\"),D49,\nIF(AND(C49=\"Quarterly\",'FFN - Current Lifestyle'!$E$3=\"Weekly\"),(D49*4)/52,\n\n\"Enter Frequency\")))))))))))))","v":""}]
[null,null,null,null,{"$f":"IF(D50=\"\",\"\",\n\nIF(AND(C50=\"Yearly\",'FFN - Current Lifestyle'!$E$3=\"Yearly\"),D50,\nIF(AND(C50=\"Monthly\",'FFN - Current Lifestyle'!$E$3=\"Yearly\"),D50*12,\nIF(AND(C50=\"Weekly\",'FFN - Current Lifestyle'!$E$3=\"Yearly\"),D50*52,\nIF(AND(C50=\"Quarterly\",'FFN - Current Lifestyle'!$E$3=\"Yearly\"),D50*4,\n\nIF(AND(C50=\"Yearly\",'FFN - Current Lifestyle'!$E$3=\"Monthly\"),D50/12,\nIF(AND(C50=\"Monthly\",'FFN - Current Lifestyle'!$E$3=\"Monthly\"),D50,\nIF(AND(C50=\"Weekly\",'FFN - Current Lifestyle'!$E$3=\"Monthly\"),D50*(52/12),\nIF(AND(C50=\"Quarterly\",'FFN - Current Lifestyle'!$E$3=\"Monthly\"),D50/3,\n\nIF(AND(C50=\"Yearly\",'FFN - Current Lifestyle'!$E$3=\"Weekly\"),D50/52,\nIF(AND(C50=\"Monthly\",'FFN - Current Lifestyle'!$E$3=\"Weekly\"),D50*(12/52),\nIF(AND(C50=\"Weekly\",'FFN - Current Lifestyle'!$E$3=\"Weekly\"),D50,\nIF(AND(C50=\"Quarterly\",'FFN - Current Lifestyle'!$E$3=\"Weekly\"),(D50*4)/52,\n\n\"Enter Frequency\")))))))))))))","v":""}]
[null,null,null,null,{"$f":"IF(D51=\"\",\"\",\n\nIF(AND(C51=\"Yearly\",'FFN - Current Lifestyle'!$E$3=\"Yearly\"),D51,\nIF(AND(C51=\"Monthly\",'FFN - Current Lifestyle'!$E$3=\"Yearly\"),D51*12,\nIF(AND(C51=\"Weekly\",'FFN - Current Lifestyle'!$E$3=\"Yearly\"),D51*52,\nIF(AND(C51=\"Quarterly\",'FFN - Current Lifestyle'!$E$3=\"Yearly\"),D51*4,\n\nIF(AND(C51=\"Yearly\",'FFN - Current Lifestyle'!$E$3=\"Monthly\"),D51/12,\nIF(AND(C51=\"Monthly\",'FFN - Current Lifestyle'!$E$3=\"Monthly\"),D51,\nIF(AND(C51=\"Weekly\",'FFN - Current Lifestyle'!$E$3=\"Monthly\"),D51*(52/12),\nIF(AND(C51=\"Quarterly\",'FFN - Current Lifestyle'!$E$3=\"Monthly\"),D51/3,\n\nIF(AND(C51=\"Yearly\",'FFN - Current Lifestyle'!$E$3=\"Weekly\"),D51/52,\nIF(AND(C51=\"Monthly\",'FFN - Current Lifestyle'!$E$3=\"Weekly\"),D51*(12/52),\nIF(AND(C51=\"Weekly\",'FFN - Current Lifestyle'!$E$3=\"Weekly\"),D51,\nIF(AND(C51=\"Quarterly\",'FFN - Current Lifestyle'!$E$3=\"Weekly\"),(D51*4)/52,\n\n\"Enter Frequency\")))))))))))))","v":""}]
[null,null,null,null,{"$f":"IF(D52=\"\",\"\",\n\nIF(AND(C52=\"Yearly\",'FFN - Current Lifestyle'!$E$3=\"Yearly\"),D52,\nIF(AND(C52=\"Monthly\",'FFN - Current Lifestyle'!$E$3=\"Yearly\"),D52*12,\nIF(AND(C52=\"Weekly\",'FFN - Current Lifestyle'!$E$3=\"Yearly\"),D52*52,\nIF(AND(C52=\"Quarterly\",'FFN - Current Lifestyle'!$E$3=\"Yearly\"),D52*4,\n\nIF(AND(C52=\"Yearly\",'FFN - Current Lifestyle'!$E$3=\"Monthly\"),D52/12,\nIF(AND(C52=\"Monthly\",'FFN - Current Lifestyle'!$E$3=\"Monthly\"),D52,\nIF(AND(C52=\"Weekly\",'FFN - Current Lifestyle'!$E$3=\"Monthly\"),D52*(52/12),\nIF(AND(C52=\"Quarterly\",'FFN - Current Lifestyle'!$E$3=\"Monthly\"),D52/3,\n\nIF(AND(C52=\"Yearly\",'FFN - Current Lifestyle'!$E$3=\"Weekly\"),D52/52,\nIF(AND(C52=\"Monthly\",'FFN - Current Lifestyle'!$E$3=\"Weekly\"),D52*(12/52),\nIF(AND(C52=\"Weekly\",'FFN - Current Lifestyle'!$E$3=\"Weekly\"),D52,\nIF(AND(C52=\"Quarterly\",'FFN - Current Lifestyle'!$E$3=\"Weekly\"),(D52*4)/52,\n\n\"Enter Frequency\")))))))))))))","v":""}]
[null,null,null,null,{"$f":"IF(D53=\"\",\"\",\n\nIF(AND(C53=\"Yearly\",'FFN - Current Lifestyle'!$E$3=\"Yearly\"),D53,\nIF(AND(C53=\"Monthly\",'FFN - Current Lifestyle'!$E$3=\"Yearly\"),D53*12,\nIF(AND(C53=\"Weekly\",'FFN - Current Lifestyle'!$E$3=\"Yearly\"),D53*52,\nIF(AND(C53=\"Quarterly\",'FFN - Current Lifestyle'!$E$3=\"Yearly\"),D53*4,\n\nIF(AND(C53=\"Yearly\",'FFN - Current Lifestyle'!$E$3=\"Monthly\"),D53/12,\nIF(AND(C53=\"Monthly\",'FFN - Current Lifestyle'!$E$3=\"Monthly\"),D53,\nIF(AND(C53=\"Weekly\",'FFN - Current Lifestyle'!$E$3=\"Monthly\"),D53*(52/12),\nIF(AND(C53=\"Quarterly\",'FFN - Current Lifestyle'!$E$3=\"Monthly\"),D53/3,\n\nIF(AND(C53=\"Yearly\",'FFN - Current Lifestyle'!$E$3=\"Weekly\"),D53/52,\nIF(AND(C53=\"Monthly\",'FFN - Current Lifestyle'!$E$3=\"Weekly\"),D53*(12/52),\nIF(AND(C53=\"Weekly\",'FFN - Current Lifestyle'!$E$3=\"Weekly\"),D53,\nIF(AND(C53=\"Quarterly\",'FFN - Current Lifestyle'!$E$3=\"Weekly\"),(D53*4)/52,\n\n\"Enter Frequency\")))))))))))))","v":""}]
[null,null,null,null,{"$f":"IF(D54=\"\",\"\",\n\nIF(AND(C54=\"Yearly\",'FFN - Current Lifestyle'!$E$3=\"Yearly\"),D54,\nIF(AND(C54=\"Monthly\",'FFN - Current Lifestyle'!$E$3=\"Yearly\"),D54*12,\nIF(AND(C54=\"Weekly\",'FFN - Current Lifestyle'!$E$3=\"Yearly\"),D54*52,\nIF(AND(C54=\"Quarterly\",'FFN - Current Lifestyle'!$E$3=\"Yearly\"),D54*4,\n\nIF(AND(C54=\"Yearly\",'FFN - Current Lifestyle'!$E$3=\"Monthly\"),D54/12,\nIF(AND(C54=\"Monthly\",'FFN - Current Lifestyle'!$E$3=\"Monthly\"),D54,\nIF(AND(C54=\"Weekly\",'FFN - Current Lifestyle'!$E$3=\"Monthly\"),D54*(52/12),\nIF(AND(C54=\"Quarterly\",'FFN - Current Lifestyle'!$E$3=\"Monthly\"),D54/3,\n\nIF(AND(C54=\"Yearly\",'FFN - Current Lifestyle'!$E$3=\"Weekly\"),D54/52,\nIF(AND(C54=\"Monthly\",'FFN - Current Lifestyle'!$E$3=\"Weekly\"),D54*(12/52),\nIF(AND(C54=\"Weekly\",'FFN - Current Lifestyle'!$E$3=\"Weekly\"),D54,\nIF(AND(C54=\"Quarterly\",'FFN - Current Lifestyle'!$E$3=\"Weekly\"),(D54*4)/52,\n\n\"Enter Frequency\")))))))))))))","v":""}]
[null,null,null,null,{"$f":"IF(D55=\"\",\"\",\n\nIF(AND(C55=\"Yearly\",'FFN - Current Lifestyle'!$E$3=\"Yearly\"),D55,\nIF(AND(C55=\"Monthly\",'FFN - Current Lifestyle'!$E$3=\"Yearly\"),D55*12,\nIF(AND(C55=\"Weekly\",'FFN - Current Lifestyle'!$E$3=\"Yearly\"),D55*52,\nIF(AND(C55=\"Quarterly\",'FFN - Current Lifestyle'!$E$3=\"Yearly\"),D55*4,\n\nIF(AND(C55=\"Yearly\",'FFN - Current Lifestyle'!$E$3=\"Monthly\"),D55/12,\nIF(AND(C55=\"Monthly\",'FFN - Current Lifestyle'!$E$3=\"Monthly\"),D55,\nIF(AND(C55=\"Weekly\",'FFN - Current Lifestyle'!$E$3=\"Monthly\"),D55*(52/12),\nIF(AND(C55=\"Quarterly\",'FFN - Current Lifestyle'!$E$3=\"Monthly\"),D55/3,\n\nIF(AND(C55=\"Yearly\",'FFN - Current Lifestyle'!$E$3=\"Weekly\"),D55/52,\nIF(AND(C55=\"Monthly\",'FFN - Current Lifestyle'!$E$3=\"Weekly\"),D55*(12/52),\nIF(AND(C55=\"Weekly\",'FFN - Current Lifestyle'!$E$3=\"Weekly\"),D55,\nIF(AND(C55=\"Quarterly\",'FFN - Current Lifestyle'!$E$3=\"Weekly\"),(D55*4)/52,\n\n\"Enter Frequency\")))))))))))))","v":""}]
[null,null,null,null,{"$f":"IF(D56=\"\",\"\",\n\nIF(AND(C56=\"Yearly\",'FFN - Current Lifestyle'!$E$3=\"Yearly\"),D56,\nIF(AND(C56=\"Monthly\",'FFN - Current Lifestyle'!$E$3=\"Yearly\"),D56*12,\nIF(AND(C56=\"Weekly\",'FFN - Current Lifestyle'!$E$3=\"Yearly\"),D56*52,\nIF(AND(C56=\"Quarterly\",'FFN - Current Lifestyle'!$E$3=\"Yearly\"),D56*4,\n\nIF(AND(C56=\"Yearly\",'FFN - Current Lifestyle'!$E$3=\"Monthly\"),D56/12,\nIF(AND(C56=\"Monthly\",'FFN - Current Lifestyle'!$E$3=\"Monthly\"),D56,\nIF(AND(C56=\"Weekly\",'FFN - Current Lifestyle'!$E$3=\"Monthly\"),D56*(52/12),\nIF(AND(C56=\"Quarterly\",'FFN - Current Lifestyle'!$E$3=\"Monthly\"),D56/3,\n\nIF(AND(C56=\"Yearly\",'FFN - Current Lifestyle'!$E$3=\"Weekly\"),D56/52,\nIF(AND(C56=\"Monthly\",'FFN - Current Lifestyle'!$E$3=\"Weekly\"),D56*(12/52),\nIF(AND(C56=\"Weekly\",'FFN - Current Lifestyle'!$E$3=\"Weekly\"),D56,\nIF(AND(C56=\"Quarterly\",'FFN - Current Lifestyle'!$E$3=\"Weekly\"),(D56*4)/52,\n\n\"N/A\")))))))))))))","v":""}]
[null,null,null,"TOTAL:",{"$f":"SUM($E5:E56)","v":0}]

{"sheet":"FFN - Current Income","index":2,"n_rows":22,"n_cols":10,"rows_kept":22,"cut":false,"hidden":false,"merged":[[1,1,2,3],[1,6,2,8]]}
[]
[null,"Active Income",null,null,"TOTAL",null,"Passive Income",null,null,"TOTAL"]
[null,null,null,null,{"$f":"'FFN - Current Lifestyle'!E3","v":"Yearly"},null,null,null,null,{"$f":"'FFN - Current Lifestyle'!E3","v":"Yearly"}]
[null,null,"Frequency","Amount","Converted $",null,null,"Frequency","Amount","Converted $"]
[null,"Work Income",null,null,null,null,"Investments / Passive Income"]
[null,"Salary",null,null,{"$f":"IF(D6=\"\",\"\",\n\nIF(AND(C6=\"Yearly\",'FFN - Current Lifestyle'!$E$3=\"Yearly\"),D6,\nIF(AND(C6=\"Monthly\",'FFN - Current Lifestyle'!$E$3=\"Yearly\"),D6*12,\nIF(AND(C6=\"Weekly\",'FFN - Current Lifestyle'!$E$3=\"Yearly\"),D6*52,\n\nIF(AND(C6=\"Yearly\",'FFN - Current Lifestyle'!$E$3=\"Monthly\"),D6/12,\nIF(AND(C6=\"Monthly\",'FFN - Current Lifestyle'!$E$3=\"Monthly\"),D6,\nIF(AND(C6=\"Weekly\",'FFN - Current Lifestyle'!$E$3=\"Monthly\"),D6*(52/12),\n\nIF(AND(C6=\"Yearly\",'FFN - Current Lifestyle'!$E$3=\"Weekly\"),D6/52,\nIF(AND(C6=\"Monthly\",'FFN - Current Lifestyle'!$E$3=\"Weekly\"),D6*(12/52),\nIF(AND(C6=\"Weekly\",'FFN - Current Lifestyle'!$E$3=\"Weekly\"),D6,\n\n\"Enter Frequency\"))))))))))","v":""},null,"Dividends",null,null,{"$f":"IF(I6=\"\",\"\",\n\nIF(AND(H6=\"Yearly\",'FFN - Current Lifestyle'!$E$3=\"Yearly\"),I6,\nIF(AND(H6=\"Monthly\",'FFN - Current Lifestyle'!$E$3=\"Yearly\"),I6*12,\nIF(AND(H6=\"Weekly\",'FFN - Current Lifestyle'!$E$3=\"Yearly\"),I6*52,\n\nIF(AND(H6=\"Yearly\",'FFN - Current Lifestyle'!$E$3=\"Monthly\"),I6/12,\nIF(AND(H6=\"Monthly\",'FFN - Current Lifestyle'!$E$3=\"Monthly\"),I6,\nIF(AND(H6=\"Weekly\",'FFN - Current Lifestyle'!$E$3=\"Monthly\"),I6*(52/12),\n\nIF(AND(H6=\"Yearly\",'FFN - Current Lifestyle'!$E$3=\"Weekly\"),I6/52,\nIF(AND(H6=\"Monthly\",'FFN - Current Lifestyle'!$E$3=\"Weekly\"),I6*(12/52),\nIF(AND(H6=\"Weekly\",'FFN - Current Lifestyle'!$E$3=\"Weekly\"),I6,\n\n\"Enter Frequency\"))))))))))","v":""}]
[null,"Bonus",null,null,{"$f":"IF(D7=\"\",\"\",\n\nIF(AND(C7=\"Yearly\",'FFN - Current Lifestyle'!$E$3=\"Yearly\"),D7,\nIF(AND(C7=\"Monthly\",'FFN - Current Lifestyle'!$E$3=\"Yearly\"),D7*12,\nIF(AND(C7=\"Weekly\",'FFN - Current Lifestyle'!$E$3=\"Yearly\"),D7*52,\n\nIF(AND(C7=\"Yearly\",'FFN - Current Lifestyle'!$E$3=\"Monthly\"),D7/12,\nIF(AND(C7=\"Monthly\",'FFN - Current Lifestyle'!$E$3=\"Monthly\"),D7,\nIF(AND(C7=\"Weekly\",'FFN - Current Lifestyle'!$E$3=\"Monthly\"),D7*(52/12),\n\nIF(AND(C7=\"Yearly\",'FFN - Current Lifestyle'!$E$3=\"Weekly\"),D7/52,\nIF(AND(C7=\"Monthly\",'FFN - Current Lifestyle'!$E$3=\"Weekly\"),D7*(12/52),\nIF(AND(C7=\"Weekly\",'FFN - Current Lifestyle'!$E$3=\"Weekly\"),D7,\n\n\"Enter Frequency\"))))))))))","v":""},null,"Net Rental Income",null,null,{"$f":"IF(I7=\"\",\"\",\n\nIF(AND(H7=\"Yearly\",'FFN - Current Lifestyle'!$E$3=\"Yearly\"),I7,\nIF(AND(H7=\"Monthly\",'FFN - Current Lifestyle'!$E$3=\"Yearly\"),I7*12,\nIF(AND(H7=\"Weekly\",'FFN - Current Lifestyle'!$E$3=\"Yearly\"),I7*52,\n\nIF(AND(H7=\"Yearly\",'FFN - Current Lifestyle'!$E$3=\"Monthly\"),I7/12,\nIF(AND(H7=\"Monthly\",'FFN - Current Lifestyle'!$E$3=\"Monthly\"),I7,\nIF(AND(H7=\"Weekly\",'FFN - Current Lifestyle'!$E$3=\"Monthly\"),I7*(52/12),\n\nIF(AND(H7=\"Yearly\",'FFN - Current Lifestyle'!$E$3=\"Weekly\"),I7/52,\nIF(AND(H7=\"Monthly\",'FFN - Current Lifestyle'!$E$3=\"Weekly\"),I7*(12/52),\nIF(AND(H7=\"Weekly\",'FFN - Current Lifestyle'!$E$3=\"Weekly\"),I7,\n\n\"Enter Frequency\"))))))))))","v":""}]
[null,"Commissions/Affiliates",null,null,{"$f":"IF(D8=\"\",\"\",\n\nIF(AND(C8=\"Yearly\",'FFN - Current Lifestyle'!$E$3=\"Yearly\"),D8,\nIF(AND(C8=\"Monthly\",'FFN - Current Lifestyle'!$E$3=\"Yearly\"),D8*12,\nIF(AND(C8=\"Weekly\",'FFN - Current Lifestyle'!$E$3=\"Yearly\"),D8*52,\n\nIF(AND(C8=\"Yearly\",'FFN - Current Lifestyle'!$E$3=\"Monthly\"),D8/12,\nIF(AND(C8=\"Monthly\",'FFN - Current Lifestyle'!$E$3=\"Monthly\"),D8,\nIF(AND(C8=\"Weekly\",'FFN - Current Lifestyle'!$E$3=\"Monthly\"),D8*(52/12),\n\nIF(AND(C8=\"Yearly\",'FFN - Current Lifestyle'!$E$3=\"Weekly\"),D8/52,\nIF(AND(C8=\"Monthly\",'FFN - Current Lifestyle'!$E$3=\"Weekly\"),D8*(12/52),\nIF(AND(C8=\"Weekly\",'FFN - Current Lifestyle'!$E$3=\"Weekly\"),D8,\n\n\"Enter Frequency\"))))))))))","v":""},null,"Bank Interest",null,null,{"$f":"IF(I8=\"\",\"\",\n\nIF(AND(H8=\"Yearly\",'FFN - Current Lifestyle'!$E$3=\"Yearly\"),I8,\nIF(AND(H8=\"Monthly\",'FFN - Current Lifestyle'!$E$3=\"Yearly\"),I8*12,\nIF(AND(H8=\"Weekly\",'FFN - Current Lifestyle'!$E$3=\"Yearly\"),I8*52,\n\nIF(AND(H8=\"Yearly\",'FFN - Current Lifestyle'!$E$3=\"Monthly\"),I8/12,\nIF(AND(H8=\"Monthly\",'FFN - Current Lifestyle'!$E$3=\"Monthly\"),I8,\nIF(AND(H8=\"Weekly\",'FFN - Current Lifestyle'!$E$3=\"Monthly\"),I8*(52/12),\n\nIF(AND(H8=\"Yearly\",'FFN - Current Lifestyle'!$E$3=\"Weekly\"),I8/52,\nIF(AND(H8=\"Monthly\",'FFN - Current Lifestyle'!$E$3=\"Weekly\"),I8*(12/52),\nIF(AND(H8=\"Weekly\",'FFN - Current Lifestyle'!$E$3=\"Weekly\"),I8,\n\n\"Enter Frequency\"))))))))))","v":""}]
[null,null,null,null,{"$f":"IF(D9=\"\",\"\",\n\nIF(AND(C9=\"Yearly\",'FFN - Current Lifestyle'!$E$3=\"Yearly\"),D9,\nIF(AND(C9=\"Monthly\",'FFN - Current Lifestyle'!$E$3=\"Yearly\"),D9*12,\nIF(AND(C9=\"Weekly\",'FFN - Current Lifestyle'!$E$3=\"Yearly\"),D9*52,\n\nIF(AND(C9=\"Yearly\",'FFN - Current Lifestyle'!$E$3=\"Monthly\"),D9/12,\nIF(AND(C9=\"Monthly\",'FFN - Current Lifestyle'!$E$3=\"Monthly\"),D9,\nIF(AND(C9=\"Weekly\",'FFN - Current Lifestyle'!$E$3=\"Monthly\"),D9*(52/12),\n\nIF(AND(C9=\"Yearly\",'FFN - Current Lifestyle'!$E$3=\"Weekly\"),D9/52,\nIF(AND(C9=\"Monthly\",'FFN - Current Lifestyle'!$E$3=\"Weekly\"),D9*(12/52),\nIF(AND(C9=\"Weekly\",'FFN - Current Lifestyle'!$E$3=\"Weekly\"),D9,\n\n\"Enter Frequency\"))))))))))","v":""},null,null,null,null,{"$f":"IF(I9=\"\",\"\",\n\nIF(AND(H9=\"Yearly\",'FFN - Current Lifestyle'!$E$3=\"Yearly\"),I9,\nIF(AND(H9=\"Monthly\",'FFN - Current Lifestyle'!$E$3=\"Yearly\"),I9*12,\nIF(AND(H9=\"Weekly\",'FFN - Current Lifestyle'!$E$3=\"Yearly\"),I9*52,\n\nIF(AND(H9=\"Yearly\",'FFN - Current Lifestyle'!$E$3=\"Monthly\"),I9/12,\nIF(AND(H9=\"Monthly\",'FFN - Current Lifestyle'!$E$3=\"Monthly\"),I9,\nIF(AND(H9=\"Weekly\",'FFN - Current Lifestyle'!$E$3=\"Monthly\"),I9*(52/12),\n\nIF(AND(H9=\"Yearly\",'FFN - Current Lifestyle'!$E$3=\"Weekly\"),I9/52,\nIF(AND(H9=\"Monthly\",'FFN - Current Lifestyle'!$E$3=\"Weekly\"),I9*(12/52),\nIF(AND(H9=\"Weekly\",'FFN - Current Lifestyle'!$E$3=\"Weekly\"),I9,\n\n\"Enter Frequency\"))))))))))","v":""}]
[null,null,null,null,{"$f":"IF(D10=\"\",\"\",\n\nIF(AND(C10=\"Yearly\",'FFN - Current Lifestyle'!$E$3=\"Yearly\"),D10,\nIF(AND(C10=\"Monthly\",'FFN - Current Lifestyle'!$E$3=\"Yearly\"),D10*12,\nIF(AND(C10=\"Weekly\",'FFN - Current Lifestyle'!$E$3=\"Yearly\"),D10*52,\n\nIF(AND(C10=\"Yearly\",'FFN - Current Lifestyle'!$E$3=\"Monthly\"),D10/12,\nIF(AND(C10=\"Monthly\",'FFN - Current Lifestyle'!$E$3=\"Monthly\"),D10,\nIF(AND(C10=\"Weekly\",'FFN - Current Lifestyle'!$E$3=\"Monthly\"),D10*(52/12),\n\nIF(AND(C10=\"Yearly\",'FFN - Current Lifestyle'!$E$3=\"Weekly\"),D10/52,\nIF(AND(C10=\"Monthly\",'FFN - Current Lifestyle'!$E$3=\"Weekly\"),D10*(12/52),\nIF(AND(C10=\"Weekly\",'FFN - Current Lifestyle'!$E$3=\"Weekly\"),D10,\n\n\"Enter Frequency\"))))))))))","v":""},null,null,null,null,{"$f":"IF(I10=\"\",\"\",\n\nIF(AND(H10=\"Yearly\",'FFN - Current Lifestyle'!$E$3=\"Yearly\"),I10,\nIF(AND(H10=\"Monthly\",'FFN - Current Lifestyle'!$E$3=\"Yearly\"),I10*12,\nIF(AND(H10=\"Weekly\",'FFN - Current Lifestyle'!$E$3=\"Yearly\"),I10*52,\n\nIF(AND(H10=\"Yearly\",'FFN - Current Lifestyle'!$E$3=\"Monthly\"),I10/12,\nIF(AND(H10=\"Monthly\",'FFN - Current Lifestyle'!$E$3=\"Monthly\"),I10,\nIF(AND(H10=\"Weekly\",'FFN - Current Lifestyle'!$E$3=\"Monthly\"),I10*(52/12),\n\nIF(AND(H10=\"Yearly\",'FFN - Current Lifestyle'!$E$3=\"Weekly\"),I10/52,\nIF(AND(H10=\"Monthly\",'FFN - Current Lifestyle'!$E$3=\"Weekly\"),I10*(12/52),\nIF(AND(H10=\"Weekly\",'FFN - Current Lifestyle'!$E$3=\"Weekly\"),I10,\n\n\"Enter Frequency\"))))))))))","v":""}]
[null,null,null,null,{"$f":"IF(D11=\"\",\"\",\n\nIF(AND(C11=\"Yearly\",'FFN - Current Lifestyle'!$E$3=\"Yearly\"),D11,\nIF(AND(C11=\"Monthly\",'FFN - Current Lifestyle'!$E$3=\"Yearly\"),D11*12,\nIF(AND(C11=\"Weekly\",'FFN - Current Lifestyle'!$E$3=\"Yearly\"),D11*52,\n\nIF(AND(C11=\"Yearly\",'FFN - Current Lifestyle'!$E$3=\"Monthly\"),D11/12,\nIF(AND(C11=\"Monthly\",'FFN - Current Lifestyle'!$E$3=\"Monthly\"),D11,\nIF(AND(C11=\"Weekly\",'FFN - Current Lifestyle'!$E$3=\"Monthly\"),D11*(52/12),\n\nIF(AND(C11=\"Yearly\",'FFN - Current Lifestyle'!$E$3=\"Weekly\"),D11/52,\nIF(AND(C11=\"Monthly\",'FFN - Current Lifestyle'!$E$3=\"Weekly\"),D11*(12/52),\nIF(AND(C11=\"Weekly\",'FFN - Current Lifestyle'!$E$3=\"Weekly\"),D11,\n\n\"Enter Frequency\"))))))))))","v":""},null,null,null,null,{"$f":"IF(I11=\"\",\"\",\n\nIF(AND(H11=\"Yearly\",'FFN - Current Lifestyle'!$E$3=\"Yearly\"),I11,\nIF(AND(H11=\"Monthly\",'FFN - Current Lifestyle'!$E$3=\"Yearly\"),I11*12,\nIF(AND(H11=\"Weekly\",'FFN - Current Lifestyle'!$E$3=\"Yearly\"),I11*52,\n\nIF(AND(H11=\"Yearly\",'FFN - Current Lifestyle'!$E$3=\"Monthly\"),I11/12,\nIF(AND(H11=\"Monthly\",'FFN - Current Lifestyle'!$E$3=\"Monthly\"),I11,\nIF(AND(H11=\"Weekly\",'FFN - Current Lifestyle'!$E$3=\"Monthly\"),I11*(52/12),\n\nIF(AND(H11=\"Yearly\",'FFN - Current Lifestyle'!$E$3=\"Weekly\"),I11/52,\nIF(AND(H11=\"Monthly\",'FFN - Current Lifestyle'!$E$3=\"Weekly\"),I11*(12/52),\nIF(AND(H11=\"Weekly\",'FFN - Current Lifestyle'!$E$3=\"Weekly\"),I11,\n\n\"Enter Frequency\"))))))))))","v":""}]
[null,"Business Income",null,null,{"$f":"IF(D12=\"\",\"\",\n\nIF(AND(C12=\"Yearly\",'FFN - Current Lifestyle'!$E$3=\"Yearly\"),D12,\nIF(AND(C12=\"Monthly\",'FFN - Current Lifestyle'!$E$3=\"Yearly\"),D12*12,\nIF(AND(C12=\"Weekly\",'FFN - Current Lifestyle'!$E$3=\"Yearly\"),D12*52,\n\nIF(AND(C12=\"Yearly\",'FFN - Current Lifestyle'!$E$3=\"Monthly\"),D12/12,\nIF(AND(C12=\"Monthly\",'FFN - Current Lifestyle'!$E$3=\"Monthly\"),D12,\nIF(AND(C12=\"Weekly\",'FFN - Current Lifestyle'!$E$3=\"Monthly\"),D12*(52/12),\n\nIF(AND(C12=\"Yearly\",'FFN - Current Lifestyle'!$E$3=\"Weekly\"),D12/52,\nIF(AND(C12=\"Monthly\",'FFN - Current Lifestyle'!$E$3=\"Weekly\"),D12*(12/52),\nIF(AND(C12=\"Weekly\",'FFN - Current Lifestyle'!$E$3=\"Weekly\"),D12,\n\n\"Enter Frequency\"))))))))))","v":""},null,"Other passive income",null,null,{"$f":"IF(I12=\"\",\"\",\n\nIF(AND(H12=\"Yearly\",'FFN - Current Lifestyle'!$E$3=\"Yearly\"),I12,\nIF(AND(H12=\"Monthly\",'FFN - Current Lifestyle'!$E$3=\"Yearly\"),I12*12,\nIF(AND(H12=\"Weekly\",'FFN - Current Lifestyle'!$E$3=\"Yearly\"),I12*52,\n\nIF(AND(H12=\"Yearly\",'FFN - Current Lifestyle'!$E$3=\"Monthly\"),I12/12,\nIF(AND(H12=\"Monthly\",'FFN - Current Lifestyle'!$E$3=\"Monthly\"),I12,\nIF(AND(H12=\"Weekly\",'FFN - Current Lifestyle'!$E$3=\"Monthly\"),I12*(52/12),\n\nIF(AND(H12=\"Yearly\",'FFN - Current Lifestyle'!$E$3=\"Weekly\"),I12/52,\nIF(AND(H12=\"Monthly\",'FFN - Current Lifestyle'!$E$3=\"Weekly\"),I12*(12/52),\nIF(AND(H12=\"Weekly\",'FFN - Current Lifestyle'!$E$3=\"Weekly\"),I12,\n\n\"Enter Frequency\"))))))))))","v":""}]
[null,"Other Income:",null,null,{"$f":"IF(D13=\"\",\"\",\n\nIF(AND(C13=\"Yearly\",'FFN - Current Lifestyle'!$E$3=\"Yearly\"),D13,\nIF(AND(C13=\"Monthly\",'FFN - Current Lifestyle'!$E$3=\"Yearly\"),D13*12,\nIF(AND(C13=\"Weekly\",'FFN - Current Lifestyle'!$E$3=\"Yearly\"),D13*52,\n\nIF(AND(C13=\"Yearly\",'FFN - Current Lifestyle'!$E$3=\"Monthly\"),D13/12,\nIF(AND(C13=\"Monthly\",'FFN - Current Lifestyle'!$E$3=\"Monthly\"),D13,\nIF(AND(C13=\"Weekly\",'FFN - Current Lifestyle'!$E$3=\"Monthly\"),D13*(52/12),\n\nIF(AND(C13=\"Yearly\",'FFN - Current Lifestyle'!$E$3=\"Weekly\"),D13/52,\nIF(AND(C13=\"Monthly\",'FFN - Current Lifestyle'!$E$3=\"Weekly\"),D13*(12/52),\nIF(AND(C13=\"Weekly\",'FFN - Current Lifestyle'!$E$3=\"Weekly\"),D13,\n\n\"Enter Frequency\"))))))))))","v":""},null,"Capital Gains from Stocks",null,null,{"$f":"IF(I13=\"\",\"\",\n\nIF(AND(H13=\"Yearly\",'FFN - Current Lifestyle'!$E$3=\"Yearly\"),I13,\nIF(AND(H13=\"Monthly\",'FFN - Current Lifestyle'!$E$3=\"Yearly\"),I13*12,\nIF(AND(H13=\"Weekly\",'FFN - Current Lifestyle'!$E$3=\"Yearly\"),I13*52,\n\nIF(AND(H13=\"Yearly\",'FFN - Current Lifestyle'!$E$3=\"Monthly\"),I13/12,\nIF(AND(H13=\"Monthly\",'FFN - Current Lifestyle'!$E$3=\"Monthly\"),I13,\nIF(AND(H13=\"Weekly\",'FFN - Current Lifestyle'!$E$3=\"Monthly\"),I13*(52/12),\n\nIF(AND(H13=\"Yearly\",'FFN - Current Lifestyle'!$E$3=\"Weekly\"),I13/52,\nIF(AND(H13=\"Monthly\",'FFN - Current Lifestyle'!$E$3=\"Weekly\"),I13*(12/52),\nIF(AND(H13=\"Weekly\",'FFN - Current Lifestyle'!$E$3=\"Weekly\"),I13,\n\n\"Enter Frequency\"))))))))))","v":""}]
[null,null,null,null,{"$f":"IF(D14=\"\",\"\",\n\nIF(AND(C14=\"Yearly\",'FFN - Current Lifestyle'!$E$3=\"Yearly\"),D14,\nIF(AND(C14=\"Monthly\",'FFN - Current Lifestyle'!$E$3=\"Yearly\"),D14*12,\nIF(AND(C14=\"Weekly\",'FFN - Current Lifestyle'!$E$3=\"Yearly\"),D14*52,\n\nIF(AND(C14=\"Yearly\",'FFN - Current Lifestyle'!$E$3=\"Monthly\"),D14/12,\nIF(AND(C14=\"Monthly\",'FFN - Current Lifestyle'!$E$3=\"Monthly\"),D14,\nIF(AND(C14=\"Weekly\",'FFN - Current Lifestyle'!$E$3=\"Monthly\"),D14*(52/12),\n\nIF(AND(C14=\"Yearly\",'FFN - Current Lifestyle'!$E$3=\"Weekly\"),D14/52,\nIF(AND(C14=\"Monthly\",'FFN - Current Lifestyle'!$E$3=\"Weekly\"),D14*(12/52),\nIF(AND(C14=\"Weekly\",'FFN - Current Lifestyle'!$E$3=\"Weekly\"),D14,\n\n\"Enter Frequency\"))))))))))","v":""},null,null,null,null,{"$f":"IF(I14=\"\",\"\",\n\nIF(AND(H14=\"Yearly\",'FFN - Current Lifestyle'!$E$3=\"Yearly\"),I14,\nIF(AND(H14=\"Monthly\",'FFN - Current Lifestyle'!$E$3=\"Yearly\"),I14*12,\nIF(AND(H14=\"Weekly\",'FFN - Current Lifestyle'!$E$3=\"Yearly\"),I14*52,\n\nIF(AND(H14=\"Yearly\",'FFN - Current Lifestyle'!$E$3=\"Monthly\"),I14/12,\nIF(AND(H14=\"Monthly\",'FFN - Current Lifestyle'!$E$3=\"Monthly\"),I14,\nIF(AND(H14=\"Weekly\",'FFN - Current Lifestyle'!$E$3=\"Monthly\"),I14*(52/12),\n\nIF(AND(H14=\"Yearly\",'FFN - Current Lifestyle'!$E$3=\"Weekly\"),I14/52,\nIF(AND(H14=\"Monthly\",'FFN - Current Lifestyle'!$E$3=\"Weekly\"),I14*(12/52),\nIF(AND(H14=\"Weekly\",'FFN - Current Lifestyle'!$E$3=\"Weekly\"),I14,\n\n\"Enter Frequency\"))))))))))","v":""}]
[null,null,null,null,{"$f":"IF(D15=\"\",\"\",\n\nIF(AND(C15=\"Yearly\",'FFN - Current Lifestyle'!$E$3=\"Yearly\"),D15,\nIF(AND(C15=\"Monthly\",'FFN - Current Lifestyle'!$E$3=\"Yearly\"),D15*12,\nIF(AND(C15=\"Weekly\",'FFN - Current Lifestyle'!$E$3=\"Yearly\"),D15*52,\n\nIF(AND(C15=\"Yearly\",'FFN - Current Lifestyle'!$E$3=\"Monthly\"),D15/12,\nIF(AND(C15=\"Monthly\",'FFN - Current Lifestyle'!$E$3=\"Monthly\"),D15,\nIF(AND(C15=\"Weekly\",'FFN - Current Lifestyle'!$E$3=\"Monthly\"),D15*(52/12),\n\nIF(AND(C15=\"Yearly\",'FFN - Current Lifestyle'!$E$3=\"Weekly\"),D15/52,\nIF(AND(C15=\"Monthly\",'FFN - Current Lifestyle'!$E$3=\"Weekly\"),D15*(12/52),\nIF(AND(C15=\"Weekly\",'FFN - Current Lifestyle'!$E$3=\"Weekly\"),D15,\n\n\"Enter Frequency\"))))))))))","v":""},null,null,null,null,{"$f":"IF(I15=\"\",\"\",\n\nIF(AND(H15=\"Yearly\",'FFN - Current Lifestyle'!$E$3=\"Yearly\"),I15,\nIF(AND(H15=\"Monthly\",'FFN - Current Lifestyle'!$E$3=\"Yearly\"),I15*12,\nIF(AND(H15=\"Weekly\",'FFN - Current Lifestyle'!$E$3=\"Yearly\"),I15*52,\n\nIF(AND(H15=\"Yearly\",'FFN - Current Lifestyle'!$E$3=\"Monthly\"),I15/12,\nIF(AND(H15=\"Monthly\",'FFN - Current Lifestyle'!$E$3=\"Monthly\"),I15,\nIF(AND(H15=\"Weekly\",'FFN - Current Lifestyle'!$E$3=\"Monthly\"),I15*(52/12),\n\nIF(AND(H15=\"Yearly\",'FFN - Current Lifestyle'!$E$3=\"Weekly\"),I15/52,\nIF(AND(H15=\"Monthly\",'FFN - Current Lifestyle'!$E$3=\"Weekly\"),I15*(12/52),\nIF(AND(H15=\"Weekly\",'FFN - Current Lifestyle'!$E$3=\"Weekly\"),I15,\n\n\"Enter Frequency\"))))))))))","v":""}]
[null,null,null,null,{"$f":"IF(D16=\"\",\"\",\n\nIF(AND(C16=\"Yearly\",'FFN - Current Lifestyle'!$E$3=\"Yearly\"),D16,\nIF(AND(C16=\"Monthly\",'FFN - Current Lifestyle'!$E$3=\"Yearly\"),D16*12,\nIF(AND(C16=\"Weekly\",'FFN - Current Lifestyle'!$E$3=\"Yearly\"),D16*52,\n\nIF(AND(C16=\"Yearly\",'FFN - Current Lifestyle'!$E$3=\"Monthly\"),D16/12,\nIF(AND(C16=\"Monthly\",'FFN - Current Lifestyle'!$E$3=\"Monthly\"),D16,\nIF(AND(C16=\"Weekly\",'FFN - Current Lifestyle'!$E$3=\"Monthly\"),D16*(52/12),\n\nIF(AND(C16=\"Yearly\",'FFN - Current Lifestyle'!$E$3=\"Weekly\"),D16/52,\nIF(AND(C16=\"Monthly\",'FFN - Current Lifestyle'!$E$3=\"Weekly\"),D16*(12/52),\nIF(AND(C16=\"Weekly\",'FFN - Current Lifestyle'!$E$3=\"Weekly\"),D16,\n\n\"Enter Frequency\"))))))))))","v":""},null,null,null,null,{"$f":"IF(I16=\"\",\"\",\n\nIF(AND(H16=\"Yearly\",'FFN - Current Lifestyle'!$E$3=\"Yearly\"),I16,\nIF(AND(H16=\"Monthly\",'FFN - Current Lifestyle'!$E$3=\"Yearly\"),I16*12,\nIF(AND(H16=\"Weekly\",'FFN - Current Lifestyle'!$E$3=\"Yearly\"),I16*52,\n\nIF(AND(H16=\"Yearly\",'FFN - Current Lifestyle'!$E$3=\"Monthly\"),I16/12,\nIF(AND(H16=\"Monthly\",'FFN - Current Lifestyle'!$E$3=\"Monthly\"),I16,\nIF(AND(H16=\"Weekly\",'FFN - Current Lifestyle'!$E$3=\"Monthly\"),I16*(52/12),\n\nIF(AND(H16=\"Yearly\",'FFN - Current Lifestyle'!$E$3=\"Weekly\"),I16/52,\nIF(AND(H16=\"Monthly\",'FFN - Current Lifestyle'!$E$3=\"Weekly\"),I16*(12/52),\nIF(AND(H16=\"Weekly\",'FFN - Current Lifestyle'!$E$3=\"Weekly\"),I16,\n\n\"Enter Frequency\"))))))))))","v":""}]
[null,null,null,null,{"$f":"IF(D17=\"\",\"\",\n\nIF(AND(C17=\"Yearly\",'FFN - Current Lifestyle'!$E$3=\"Yearly\"),D17,\nIF(AND(C17=\"Monthly\",'FFN - Current Lifestyle'!$E$3=\"Yearly\"),D17*12,\nIF(AND(C17=\"Weekly\",'FFN - Current Lifestyle'!$E$3=\"Yearly\"),D17*52,\n\nIF(AND(C17=\"Yearly\",'FFN - Current Lifestyle'!$E$3=\"Monthly\"),D17/12,\nIF(AND(C17=\"Monthly\",'FFN - Current Lifestyle'!$E$3=\"Monthly\"),D17,\nIF(AND(C17=\"Weekly\",'FFN - Current Lifestyle'!$E$3=\"Monthly\"),D17*(52/12),\n\nIF(AND(C17=\"Yearly\",'FFN - Current Lifestyle'!$E$3=\"Weekly\"),D17/52,\nIF(AND(C17=\"Monthly\",'FFN - Current Lifestyle'!$E$3=\"Weekly\"),D17*(12/52),\nIF(AND(C17=\"Weekly\",'FFN - Current Lifestyle'!$E$3=\"Weekly\"),D17,\n\n\"Enter Frequency\"))))))))))","v":""},null,null,null,null,{"$f":"IF(I17=\"\",\"\",\n\nIF(AND(H17=\"Yearly\",'FFN - Current Lifestyle'!$E$3=\"Yearly\"),I17,\nIF(AND(H17=\"Monthly\",'FFN - Current Lifestyle'!$E$3=\"Yearly\"),I17*12,\nIF(AND(H17=\"Weekly\",'FFN - Current Lifestyle'!$E$3=\"Yearly\"),I17*52,\n\nIF(AND(H17=\"Yearly\",'FFN - Current Lifestyle'!$E$3=\"Monthly\"),I17/12,\nIF(AND(H17=\"Monthly\",'FFN - Current Lifestyle'!$E$3=\"Monthly\"),I17,\nIF(AND(H17=\"Weekly\",'FFN - Current Lifestyle'!$E$3=\"Monthly\"),I17*(52/12),\n\nIF(AND(H17=\"Yearly\",'FFN - Current Lifestyle'!$E$3=\"Weekly\"),I17/52,\nIF(AND(H17=\"Monthly\",'FFN - Current Lifestyle'!$E$3=\"Weekly\"),I17*(12/52),\nIF(AND(H17=\"Weekly\",'FFN - Current Lifestyle'!$E$3=\"Weekly\"),I17,\n\n\"Enter Frequency\"))))))))))","v":""}]
[null,null,null,null,{"$f":"IF(D18=\"\",\"\",\n\nIF(AND(C18=\"Yearly\",'FFN - Current Lifestyle'!$E$3=\"Yearly\"),D18,\nIF(AND(C18=\"Monthly\",'FFN - Current Lifestyle'!$E$3=\"Yearly\"),D18*12,\nIF(AND(C18=\"Weekly\",'FFN - Current Lifestyle'!$E$3=\"Yearly\"),D18*52,\n\nIF(AND(C18=\"Yearly\",'FFN - Current Lifestyle'!$E$3=\"Monthly\"),D18/12,\nIF(AND(C18=\"Monthly\",'FFN - Current Lifestyle'!$E$3=\"Monthly\"),D18,\nIF(AND(C18=\"Weekly\",'FFN - Current Lifestyle'!$E$3=\"Monthly\"),D18*(52/12),\n\nIF(AND(C18=\"Yearly\",'FFN - Current Lifestyle'!$E$3=\"Weekly\"),D18/52,\nIF(AND(C18=\"Monthly\",'FFN - Current Lifestyle'!$E$3=\"Weekly\"),D18*(12/52),\nIF(AND(C18=\"Weekly\",'FFN - Current Lifestyle'!$E$3=\"Weekly\"),D18,\n\n\"Enter Frequency\"))))))))))","v":""},null,null,null,null,{"$f":"IF(I18=\"\",\"\",\n\nIF(AND(H18=\"Yearly\",'FFN - Current Lifestyle'!$E$3=\"Yearly\"),I18,\nIF(AND(H18=\"Monthly\",'FFN - Current Lifestyle'!$E$3=\"Yearly\"),I18*12,\nIF(AND(H18=\"Weekly\",'FFN - Current Lifestyle'!$E$3=\"Yearly\"),I18*52,\n\nIF(AND(H18=\"Yearly\",'FFN - Current Lifestyle'!$E$3=\"Monthly\"),I18/12,\nIF(AND(H18=\"Monthly\",'FFN - Current Lifestyle'!$E$3=\"Monthly\"),I18,\nIF(AND(H18=\"Weekly\",'FFN - Current Lifestyle'!$E$3=\"Monthly\"),I18*(52/12),\n\nIF(AND(H18=\"Yearly\",'FFN - Current Lifestyle'!$E$3=\"Weekly\"),I18/52,\nIF(AND(H18=\"Monthly\",'FFN - Current Lifestyle'!$E$3=\"Weekly\"),I18*(12/52),\nIF(AND(H18=\"Weekly\",'FFN - Current Lifestyle'!$E$3=\"Weekly\"),I18,\n\n\"Enter Frequency\"))))))))))","v":""}]
[null,null,null,null,{"$f":"IF(D19=\"\",\"\",\n\nIF(AND(C19=\"Yearly\",'FFN - Current Lifestyle'!$E$3=\"Yearly\"),D19,\nIF(AND(C19=\"Monthly\",'FFN - Current Lifestyle'!$E$3=\"Yearly\"),D19*12,\nIF(AND(C19=\"Weekly\",'FFN - Current Lifestyle'!$E$3=\"Yearly\"),D19*52,\n\nIF(AND(C19=\"Yearly\",'FFN - Current Lifestyle'!$E$3=\"Monthly\"),D19/12,\nIF(AND(C19=\"Monthly\",'FFN - Current Lifestyle'!$E$3=\"Monthly\"),D19,\nIF(AND(C19=\"Weekly\",'FFN - Current Lifestyle'!$E$3=\"Monthly\"),D19*(52/12),\n\nIF(AND(C19=\"Yearly\",'FFN - Current Lifestyle'!$E$3=\"Weekly\"),D19/52,\nIF(AND(C19=\"Monthly\",'FFN - Current Lifestyle'!$E$3=\"Weekly\"),D19*(12/52),\nIF(AND(C19=\"Weekly\",'FFN - Current Lifestyle'!$E$3=\"Weekly\"),D19,\n\n\"Enter Frequency\"))))))))))","v":""},null,null,null,null,{"$f":"IF(I19=\"\",\"\",\n\nIF(AND(H19=\"Yearly\",'FFN - Current Lifestyle'!$E$3=\"Yearly\"),I19,\nIF(AND(H19=\"Monthly\",'FFN - Current Lifestyle'!$E$3=\"Yearly\"),I19*12,\nIF(AND(H19=\"Weekly\",'FFN - Current Lifestyle'!$E$3=\"Yearly\"),I19*52,\n\nIF(AND(H19=\"Yearly\",'FFN - Current Lifestyle'!$E$3=\"Monthly\"),I19/12,\nIF(AND(H19=\"Monthly\",'FFN - Current Lifestyle'!$E$3=\"Monthly\"),I19,\nIF(AND(H19=\"Weekly\",'FFN - Current Lifestyle'!$E$3=\"Monthly\"),I19*(52/12),\n\nIF(AND(H19=\"Yearly\",'FFN - Current Lifestyle'!$E$3=\"Weekly\"),I19/52,\nIF(AND(H19=\"Monthly\",'FFN - Current Lifestyle'!$E$3=\"Weekly\"),I19*(12/52),\nIF(AND(H19=\"Weekly\",'FFN - Current Lifestyle'!$E$3=\"Weekly\"),I19,\n\n\"Enter Frequency\"))))))))))","v":""}]
[null,null,null,null,{"$f":"IF(D20=\"\",\"\",\n\nIF(AND(C20=\"Yearly\",'FFN - Current Lifestyle'!$E$3=\"Yearly\"),D20,\nIF(AND(C20=\"Monthly\",'FFN - Current Lifestyle'!$E$3=\"Yearly\"),D20*12,\nIF(AND(C20=\"Weekly\",'FFN - Current Lifestyle'!$E$3=\"Yearly\"),D20*52,\n\nIF(AND(C20=\"Yearly\",'FFN - Current Lifestyle'!$E$3=\"Monthly\"),D20/12,\nIF(AND(C20=\"Monthly\",'FFN - Current Lifestyle'!$E$3=\"Monthly\"),D20,\nIF(AND(C20=\"Weekly\",'FFN - Current Lifestyle'!$E$3=\"Monthly\"),D20*(52/12),\n\nIF(AND(C20=\"Yearly\",'FFN - Current Lifestyle'!$E$3=\"Weekly\"),D20/52,\nIF(AND(C20=\"Monthly\",'FFN - Current Lifestyle'!$E$3=\"Weekly\"),D20*(12/52),\nIF(AND(C20=\"Weekly\",'FFN - Current Lifestyle'!$E$3=\"Weekly\"),D20,\n\n\"Enter Frequency\"))))))))))","v":""},null,null,null,null,{"$f":"IF(I20=\"\",\"\",\n\nIF(AND(H20=\"Yearly\",'FFN - Current Lifestyle'!$E$3=\"Yearly\"),I20,\nIF(AND(H20=\"Monthly\",'FFN - Current Lifestyle'!$E$3=\"Yearly\"),I20*12,\nIF(AND(H20=\"Weekly\",'FFN - Current Lifestyle'!$E$3=\"Yearly\"),I20*52,\n\nIF(AND(H20=\"Yearly\",'FFN - Current Lifestyle'!$E$3=\"Monthly\"),I20/12,\nIF(AND(H20=\"Monthly\",'FFN - Current Lifestyle'!$E$3=\"Monthly\"),I20,\nIF(AND(H20=\"Weekly\",'FFN - Current Lifestyle'!$E$3=\"Monthly\"),I20*(52/12),\n\nIF(AND(H20=\"Yearly\",'FFN - Current Lifestyle'!$E$3=\"Weekly\"),I20/52,\nIF(AND(H20=\"Monthly\",'FFN - Current Lifestyle'!$E$3=\"Weekly\"),I20*(12/52),\nIF(AND(H20=\"Weekly\",'FFN - Current Lifestyle'!$E$3=\"Weekly\"),I20,\n\n\"Enter Frequency\"))))))))))","v":""}]
[null,null,null,null,{"$f":"IF(D21=\"\",\"\",\n\nIF(AND(C21=\"Yearly\",'FFN - Current Lifestyle'!$E$3=\"Yearly\"),D21,\nIF(AND(C21=\"Monthly\",'FFN - Current Lifestyle'!$E$3=\"Yearly\"),D21*12,\nIF(AND(C21=\"Weekly\",'FFN - Current Lifestyle'!$E$3=\"Yearly\"),D21*52,\n\nIF(AND(C21=\"Yearly\",'FFN - Current Lifestyle'!$E$3=\"Monthly\"),D21/12,\nIF(AND(C21=\"Monthly\",'FFN - Current Lifestyle'!$E$3=\"Monthly\"),D21,\nIF(AND(C21=\"Weekly\",'FFN - Current Lifestyle'!$E$3=\"Monthly\"),D21*(52/12),\n\nIF(AND(C21=\"Yearly\",'FFN - Current Lifestyle'!$E$3=\"Weekly\"),D21/52,\nIF(AND(C21=\"Monthly\",'FFN - Current Lifestyle'!$E$3=\"Weekly\"),D21*(12/52),\nIF(AND(C21=\"Weekly\",'FFN - Current Lifestyle'!$E$3=\"Weekly\"),D21,\n\n\"N/A\"))))))))))","v":""},null,null,null,null,{"$f":"IF(I21=\"\",\"\",\n\nIF(AND(H21=\"Yearly\",'FFN - Current Lifestyle'!$E$3=\"Yearly\"),I21,\nIF(AND(H21=\"Monthly\",'FFN - Current Lifestyle'!$E$3=\"Yearly\"),I21*12,\nIF(AND(H21=\"Weekly\",'FFN - Current Lifestyle'!$E$3=\"Yearly\"),I21*52,\n\nIF(AND(H21=\"Yearly\",'FFN - Current Lifestyle'!$E$3=\"Monthly\"),I21/12,\nIF(AND(H21=\"Monthly\",'FFN - Current Lifestyle'!$E$3=\"Monthly\"),I21,\nIF(AND(H21=\"Weekly\",'FFN - Current Lifestyle'!$E$3=\"Monthly\"),I21*(52/12),\n\nIF(AND(H21=\"Yearly\",'FFN - Current Lifestyle'!$E$3=\"Weekly\"),I21/52,\nIF(AND(H21=\"Monthly\",'FFN - Current Lifestyle'!$E$3=\"Weekly\"),I21*(12/52),\nIF(AND(H21=\"Weekly\",'FFN - Current Lifestyle'!$E$3=\"Weekly\"),I21,\n\n\"N/A\"))))))))))","v":""}]
[null,null,null,"TOTAL:",{"$f":"SUM(E6:E21)","v":0},null,null,null,"TOTAL:",{"$f":"SUM(J5:J21)","v":0}]

{"sheet":"FFN - Financial Freedom Number","index":3,"n_rows":35,"n_cols":17,"rows_kept":35,"cut":false,"hidden":false,"merged":[[14,1,15,2],[14,3,15,3],[16,1,17,2],[5,1,10,2],[7,3,8,3],[9,3,10,3],[1,7,1,8],[16,3,17,3],[16,4,17,4],[5,3,6,3],[5,4,6,4],[7,4,8,4],[9,4,10,4],[2,6,3,6],[14,4,15,5]]}
[]
[null,null,null,null,null,null,null,"INSERT YOUR OWN % \n▼ HERE ▼"]
[null,null,null,null,null,null,"Year",0.18,"Return Generated",7.0000000000000007E-2,"Return Generated",0.1,"Return Generated",0.15,"Return Generated",0.2,"Return Generated"]
[null,null,null,null,null,null,null,"Per Year","per month","Per Year",{"$f":"$I$4","v":"per month"},"Per Year",{"$f":"$I$4","v":"per month"},"Per Year",{"$f":"$I$4","v":"per month"},"Per Year",{"$f":"$I$4","v":"per month"}]
[null,null,null,"Amount ($)","Period",null,"0\n(this year)"]
[null,"Financial Freedom Number",null,null,"Yearly",null,1]
[null,null,null,null,null,null,2]
[null,null,null,null,"Monthly",null,3]
[null,null,null,null,null,null,4]
[null,null,null,null,"Weekly",null,5]
[null,null,null,null,null,null,6]
[null,null,null,null,null,null,7]
[null,null,null,null,null,null,8]
[null,null,null,null,null,null,9]
[null,"Starting Capital",null,null,{"$f":"IF(D15=0,\"**Enter STARTING CAPITAL**\",\"\")","v":"**Enter STARTING CAPITAL**"},null,10]
[null,null,null,null,null,null,11]
[null,"Additional Contributions",null,null,"per month",null,12]
[null,null,null,null,null,null,13]
[null,null,null,null,null,null,14]
[null,null,null,null,null,null,15]
[null,null,null,null,null,null,16]
[null,null,null,null,null,null,17]
[null,null,null,null,null,null,18]
[null,null,null,null,null,null,19]
[null,null,null,null,null,null,20]
[null,null,null,null,null,null,21]
[null,null,null,null,null,null,22]
[null,null,null,null,null,null,23]
[null,null,null,null,null,null,24]
[null,null,null,null,null,null,25]
[null,null,null,null,null,null,26]
[null,null,null,null,null,null,27]
[null,null,null,null,null,null,28]
[null,null,null,null,null,null,29]
[null,null,null,null,null,null,30]

{"sheet":"FAN - Dream Lifestyle","index":4,"n_rows":57,"n_cols":5,"rows_kept":57,"cut":false,"hidden":false,"merged":[[1,1,2,3]]}
[]
[null,"Dream Lifestyle Expenses",null,null,"TOTAL"]
[null,null,null,null,"Yearly"]
[null,null,"Frequency","Amount","Converted $"]
[null,"Home",null,null,{"$f":"IF(D5=\"\",\"\",\n\nIF(AND(C5=\"Yearly\",$E$3=\"Yearly\"),D5,\nIF(AND(C5=\"Monthly\",$E$3=\"Yearly\"),D5*12,\nIF(AND(C5=\"Weekly\",$E$3=\"Yearly\"),D5*52,\nIF(AND(C5=\"Quarterly\",$E$3=\"Yearly\"),D5*4,\n\nIF(AND(C5=\"Yearly\",$E$3=\"Monthly\"),D5/12,\nIF(AND(C5=\"Monthly\",$E$3=\"Monthly\"),D5,\nIF(AND(C5=\"Weekly\",$E$3=\"Monthly\"),D5*(52/12),\nIF(AND(C5=\"Quarterly\",$E$3=\"Monthly\"),D5/3,\n\nIF(AND(C5=\"Yearly\",$E$3=\"Weekly\"),D5/52,\nIF(AND(C5=\"Monthly\",$E$3=\"Weekly\"),D5*(12/52),\nIF(AND(C5=\"Weekly\",$E$3=\"Weekly\"),D5,\nIF(AND(C5=\"Quarterly\",$E$3=\"Weekly\"),(D5*4)/52,\n\n\"N/A\")))))))))))))","v":""}]
[null,"Rent/Mortgage",null,null,{"$f":"IF(D6=\"\",\"\",\n\nIF(AND(C6=\"Yearly\",$E$3=\"Yearly\"),D6,\nIF(AND(C6=\"Monthly\",$E$3=\"Yearly\"),D6*12,\nIF(AND(C6=\"Weekly\",$E$3=\"Yearly\"),D6*52,\nIF(AND(C6=\"Quarterly\",$E$3=\"Yearly\"),D6*4,\n\nIF(AND(C6=\"Yearly\",$E$3=\"Monthly\"),D6/12,\nIF(AND(C6=\"Monthly\",$E$3=\"Monthly\"),D6,\nIF(AND(C6=\"Weekly\",$E$3=\"Monthly\"),D6*(52/12),\nIF(AND(C6=\"Quarterly\",$E$3=\"Monthly\"),D6/3,\n\nIF(AND(C6=\"Yearly\",$E$3=\"Weekly\"),D6/52,\nIF(AND(C6=\"Monthly\",$E$3=\"Weekly\"),D6*(12/52),\nIF(AND(C6=\"Weekly\",$E$3=\"Weekly\"),D6,\nIF(AND(C6=\"Quarterly\",$E$3=\"Weekly\"),(D6*4)/52,\n\n\"Enter Frequency\")))))))))))))","v":""}]
[null,"Home Maintenance",null,null,{"$f":"IF(D7=\"\",\"\",\n\nIF(AND(C7=\"Yearly\",$E$3=\"Yearly\"),D7,\nIF(AND(C7=\"Monthly\",$E$3=\"Yearly\"),D7*12,\nIF(AND(C7=\"Weekly\",$E$3=\"Yearly\"),D7*52,\nIF(AND(C7=\"Quarterly\",$E$3=\"Yearly\"),D7*4,\n\nIF(AND(C7=\"Yearly\",$E$3=\"Monthly\"),D7/12,\nIF(AND(C7=\"Monthly\",$E$3=\"Monthly\"),D7,\nIF(AND(C7=\"Weekly\",$E$3=\"Monthly\"),D7*(52/12),\nIF(AND(C7=\"Quarterly\",$E$3=\"Monthly\"),D7/3,\n\nIF(AND(C7=\"Yearly\",$E$3=\"Weekly\"),D7/52,\nIF(AND(C7=\"Monthly\",$E$3=\"Weekly\"),D7*(12/52),\nIF(AND(C7=\"Weekly\",$E$3=\"Weekly\"),D7,\nIF(AND(C7=\"Quarterly\",$E$3=\"Weekly\"),(D7*4)/52,\n\n\"Enter Frequency\")))))))))))))","v":""}]
[null,"Appliances",null,null,""]
[null,"Insurance (Home)",null,null,""]
[null,"Food",null,null,""]
[null,"Food/Groceries",null,null,""]
[null,"Eating Out",null,null,""]
[null,"Bills",null,null,""]
[null,"Internet Bill",null,null,""]
[null,"Mobile Phone",null,null,""]
[null,"Gas and Electricity",null,null,""]
[null,"Home Phone Bill",null,null,""]
[null,"Water Bill",null,null,""]
[null,"Car",null,null,""]
[null,"Car Lease",null,null,""]
[null,"Car Registration",null,null,""]
[null,"Car Repairs",null,null,""]
[null,"Insurance (Car)",null,null,""]
[null,"Petrol",null,null,""]
[null,"Lifestyle - Health",null,null,""]
[null,"Gym Membership",null,null,""]
[null,"Insurance (Health, Life etc.)",null,null,""]
[null,"Medical",null,null,""]
[null,"Dental",null,null,""]
[null,"Wellbeing",null,null,""]
[null,"Lifestyle - Entertainment",null,null,""]
[null,"Apps and Music",null,null,""]
[null,"Subscriptions",null,null,""]
[null,"Education",null,null,""]
[null,"Memberships",null,null,""]
[null,"Holidays",null,null,""]
[null,"Presents",null,null,""]
[null,"Debt",null,null,""]
[null,"Personal Loans",null,null,""]
[null,"Credit Cards",null,null,""]
[null,"Other Expenses",null,null,""]
[null,null,null,null,""]
[null,null,null,null,""]
[null,null,null,null,""]
[null,null,null,null,""]
[null,null,null,null,""]
[null,null,null,null,""]
[null,null,null,null,""]
[null,null,null,null,""]
[null,null,null,null,""]
[null,null,null,null,""]
[null,null,null,null,""]
[null,null,null,null,""]
[null,null,null,null,""]
[null,null,null,null,""]
[]
[null,null,null,"TOTAL:",{"$f":"SUM(E5:E56)","v":0}]

{"sheet":"FAN - Current Income","index":5,"n_rows":22,"n_cols":10,"rows_kept":22,"cut":false,"hidden":false,"merged":[[1,1,2,3],[1,6,2,8]]}
[]
[null,"Active Income",null,null,"TOTAL",null,"Passive Income",null,null,"TOTAL"]
[null,null,null,null,{"$f":"'FAN - Dream Lifestyle'!$E$3","v":"Yearly"},null,null,null,null,{"$f":"'FAN - Dream Lifestyle'!$E$3","v":"Yearly"}]
[null,null,"Frequency","Amount","Converted $",null,null,"Frequency","Amount","Converted $"]
[null,"Work Income",null,null,null,null,"Investments / Passive Income"]
[null,"Salary",null,null,{"$f":"IF(D6=\"\",\"\",\n\nIF(AND(C6=\"Yearly\",'FAN - Dream Lifestyle'!$E$3=\"Yearly\"),D6,\nIF(AND(C6=\"Monthly\",'FAN - Dream Lifestyle'!$E$3=\"Yearly\"),D6*12,\nIF(AND(C6=\"Weekly\",'FAN - Dream Lifestyle'!$E$3=\"Yearly\"),D6*52,\n\nIF(AND(C6=\"Yearly\",'FAN - Dream Lifestyle'!$E$3=\"Monthly\"),D6/12,\nIF(AND(C6=\"Monthly\",'FAN - Dream Lifestyle'!$E$3=\"Monthly\"),D6,\nIF(AND(C6=\"Weekly\",'FAN - Dream Lifestyle'!$E$3=\"Monthly\"),D6*(52/12),\n\nIF(AND(C6=\"Yearly\",'FAN - Dream Lifestyle'!$E$3=\"Weekly\"),D6/52,\nIF(AND(C6=\"Monthly\",'FAN - Dream Lifestyle'!$E$3=\"Weekly\"),D6*(12/52),\nIF(AND(C6=\"Weekly\",'FAN - Dream Lifestyle'!$E$3=\"Weekly\"),D6,\n\n\"Enter Frequency\"))))))))))","v":""},null,"Dividends",null,null,{"$f":"IF(I6=\"\",\"\",\n\nIF(AND(H6=\"Yearly\",'FAN - Dream Lifestyle'!$E$3=\"Yearly\"),I6,\nIF(AND(H6=\"Monthly\",'FAN - Dream Lifestyle'!$E$3=\"Yearly\"),I6*12,\nIF(AND(H6=\"Weekly\",'FAN - Dream Lifestyle'!$E$3=\"Yearly\"),I6*52,\n\nIF(AND(H6=\"Yearly\",'FAN - Dream Lifestyle'!$E$3=\"Monthly\"),I6/12,\nIF(AND(H6=\"Monthly\",'FAN - Dream Lifestyle'!$E$3=\"Monthly\"),I6,\nIF(AND(H6=\"Weekly\",'FAN - Dream Lifestyle'!$E$3=\"Monthly\"),I6*(52/12),\n\nIF(AND(H6=\"Yearly\",'FAN - Dream Lifestyle'!$E$3=\"Weekly\"),I6/52,\nIF(AND(H6=\"Monthly\",'FAN - Dream Lifestyle'!$E$3=\"Weekly\"),I6*(12/52),\nIF(AND(H6=\"Weekly\",'FAN - Dream Lifestyle'!$E$3=\"Weekly\"),I6,\n\n\"Enter Frequency\"))))))))))","v":""}]
[null,"Bonus",null,null,{"$f":"IF(D7=\"\",\"\",\n\nIF(AND(C7=\"Yearly\",'FAN - Dream Lifestyle'!$E$3=\"Yearly\"),D7,\nIF(AND(C7=\"Monthly\",'FAN - Dream Lifestyle'!$E$3=\"Yearly\"),D7*12,\nIF(AND(C7=\"Weekly\",'FAN - Dream Lifestyle'!$E$3=\"Yearly\"),D7*52,\n\nIF(AND(C7=\"Yearly\",'FAN - Dream Lifestyle'!$E$3=\"Monthly\"),D7/12,\nIF(AND(C7=\"Monthly\",'FAN - Dream Lifestyle'!$E$3=\"Monthly\"),D7,\nIF(AND(C7=\"Weekly\",'FAN - Dream Lifestyle'!$E$3=\"Monthly\"),D7*(52/12),\n\nIF(AND(C7=\"Yearly\",'FAN - Dream Lifestyle'!$E$3=\"Weekly\"),D7/52,\nIF(AND(C7=\"Monthly\",'FAN - Dream Lifestyle'!$E$3=\"Weekly\"),D7*(12/52),\nIF(AND(C7=\"Weekly\",'FAN - Dream Lifestyle'!$E$3=\"Weekly\"),D7,\n\n\"Enter Frequency\"))))))))))","v":""},null,"Rental Income",null,null,{"$f":"IF(I7=\"\",\"\",\n\nIF(AND(H7=\"Yearly\",'FAN - Dream Lifestyle'!$E$3=\"Yearly\"),I7,\nIF(AND(H7=\"Monthly\",'FAN - Dream Lifestyle'!$E$3=\"Yearly\"),I7*12,\nIF(AND(H7=\"Weekly\",'FAN - Dream Lifestyle'!$E$3=\"Yearly\"),I7*52,\n\nIF(AND(H7=\"Yearly\",'FAN - Dream Lifestyle'!$E$3=\"Monthly\"),I7/12,\nIF(AND(H7=\"Monthly\",'FAN - Dream Lifestyle'!$E$3=\"Monthly\"),I7,\nIF(AND(H7=\"Weekly\",'FAN - Dream Lifestyle'!$E$3=\"Monthly\"),I7*(52/12),\n\nIF(AND(H7=\"Yearly\",'FAN - Dream Lifestyle'!$E$3=\"Weekly\"),I7/52,\nIF(AND(H7=\"Monthly\",'FAN - Dream Lifestyle'!$E$3=\"Weekly\"),I7*(12/52),\nIF(AND(H7=\"Weekly\",'FAN - Dream Lifestyle'!$E$3=\"Weekly\"),I7,\n\n\"Enter Frequency\"))))))))))","v":""}]
[null,"Commissions/Affiliates",null,null,{"$f":"IF(D8=\"\",\"\",\n\nIF(AND(C8=\"Yearly\",'FAN - Dream Lifestyle'!$E$3=\"Yearly\"),D8,\nIF(AND(C8=\"Monthly\",'FAN - Dream Lifestyle'!$E$3=\"Yearly\"),D8*12,\nIF(AND(C8=\"Weekly\",'FAN - Dream Lifestyle'!$E$3=\"Yearly\"),D8*52,\n\nIF(AND(C8=\"Yearly\",'FAN - Dream Lifestyle'!$E$3=\"Monthly\"),D8/12,\nIF(AND(C8=\"Monthly\",'FAN - Dream Lifestyle'!$E$3=\"Monthly\"),D8,\nIF(AND(C8=\"Weekly\",'FAN - Dream Lifestyle'!$E$3=\"Monthly\"),D8*(52/12),\n\nIF(AND(C8=\"Yearly\",'FAN - Dream Lifestyle'!$E$3=\"Weekly\"),D8/52,\nIF(AND(C8=\"Monthly\",'FAN - Dream Lifestyle'!$E$3=\"Weekly\"),D8*(12/52),\nIF(AND(C8=\"Weekly\",'FAN - Dream Lifestyle'!$E$3=\"Weekly\"),D8,\n\n\"Enter Frequency\"))))))))))","v":""},null,"Bank Interest",null,null,{"$f":"IF(I8=\"\",\"\",\n\nIF(AND(H8=\"Yearly\",'FAN - Dream Lifestyle'!$E$3=\"Yearly\"),I8,\nIF(AND(H8=\"Monthly\",'FAN - Dream Lifestyle'!$E$3=\"Yearly\"),I8*12,\nIF(AND(H8=\"Weekly\",'FAN - Dream Lifestyle'!$E$3=\"Yearly\"),I8*52,\n\nIF(AND(H8=\"Yearly\",'FAN - Dream Lifestyle'!$E$3=\"Monthly\"),I8/12,\nIF(AND(H8=\"Monthly\",'FAN - Dream Lifestyle'!$E$3=\"Monthly\"),I8,\nIF(AND(H8=\"Weekly\",'FAN - Dream Lifestyle'!$E$3=\"Monthly\"),I8*(52/12),\n\nIF(AND(H8=\"Yearly\",'FAN - Dream Lifestyle'!$E$3=\"Weekly\"),I8/52,\nIF(AND(H8=\"Monthly\",'FAN - Dream Lifestyle'!$E$3=\"Weekly\"),I8*(12/52),\nIF(AND(H8=\"Weekly\",'FAN - Dream Lifestyle'!$E$3=\"Weekly\"),I8,\n\n\"Enter Frequency\"))))))))))","v":""}]
[null,null,null,null,{"$f":"IF(D9=\"\",\"\",\n\nIF(AND(C9=\"Yearly\",'FAN - Dream Lifestyle'!$E$3=\"Yearly\"),D9,\nIF(AND(C9=\"Monthly\",'FAN - Dream Lifestyle'!$E$3=\"Yearly\"),D9*12,\nIF(AND(C9=\"Weekly\",'FAN - Dream Lifestyle'!$E$3=\"Yearly\"),D9*52,\n\nIF(AND(C9=\"Yearly\",'FAN - Dream Lifestyle'!$E$3=\"Monthly\"),D9/12,\nIF(AND(C9=\"Monthly\",'FAN - Dream Lifestyle'!$E$3=\"Monthly\"),D9,\nIF(AND(C9=\"Weekly\",'FAN - Dream Lifestyle'!$E$3=\"Monthly\"),D9*(52/12),\n\nIF(AND(C9=\"Yearly\",'FAN - Dream Lifestyle'!$E$3=\"Weekly\"),D9/52,\nIF(AND(C9=\"Monthly\",'FAN - Dream Lifestyle'!$E$3=\"Weekly\"),D9*(12/52),\nIF(AND(C9=\"Weekly\",'FAN - Dream Lifestyle'!$E$3=\"Weekly\"),D9,\n\n\"Enter Frequency\"))))))))))","v":""},null,null,null,null,{"$f":"IF(I9=\"\",\"\",\n\nIF(AND(H9=\"Yearly\",'FAN - Dream Lifestyle'!$E$3=\"Yearly\"),I9,\nIF(AND(H9=\"Monthly\",'FAN - Dream Lifestyle'!$E$3=\"Yearly\"),I9*12,\nIF(AND(H9=\"Weekly\",'FAN - Dream Lifestyle'!$E$3=\"Yearly\"),I9*52,\n\nIF(AND(H9=\"Yearly\",'FAN - Dream Lifestyle'!$E$3=\"Monthly\"),I9/12,\nIF(AND(H9=\"Monthly\",'FAN - Dream Lifestyle'!$E$3=\"Monthly\"),I9,\nIF(AND(H9=\"Weekly\",'FAN - Dream Lifestyle'!$E$3=\"Monthly\"),I9*(52/12),\n\nIF(AND(H9=\"Yearly\",'FAN - Dream Lifestyle'!$E$3=\"Weekly\"),I9/52,\nIF(AND(H9=\"Monthly\",'FAN - Dream Lifestyle'!$E$3=\"Weekly\"),I9*(12/52),\nIF(AND(H9=\"Weekly\",'FAN - Dream Lifestyle'!$E$3=\"Weekly\"),I9,\n\n\"Enter Frequency\"))))))))))","v":""}]
[null,null,null,null,{"$f":"IF(D10=\"\",\"\",\n\nIF(AND(C10=\"Yearly\",'FAN - Dream Lifestyle'!$E$3=\"Yearly\"),D10,\nIF(AND(C10=\"Monthly\",'FAN - Dream Lifestyle'!$E$3=\"Yearly\"),D10*12,\nIF(AND(C10=\"Weekly\",'FAN - Dream Lifestyle'!$E$3=\"Yearly\"),D10*52,\n\nIF(AND(C10=\"Yearly\",'FAN - Dream Lifestyle'!$E$3=\"Monthly\"),D10/12,\nIF(AND(C10=\"Monthly\",'FAN - Dream Lifestyle'!$E$3=\"Monthly\"),D10,\nIF(AND(C10=\"Weekly\",'FAN - Dream Lifestyle'!$E$3=\"Monthly\"),D10*(52/12),\n\nIF(AND(C10=\"Yearly\",'FAN - Dream Lifestyle'!$E$3=\"Weekly\"),D10/52,\nIF(AND(C10=\"Monthly\",'FAN - Dream Lifestyle'!$E$3=\"Weekly\"),D10*(12/52),\nIF(AND(C10=\"Weekly\",'FAN - Dream Lifestyle'!$E$3=\"Weekly\"),D10,\n\n\"Enter Frequency\"))))))))))","v":""},null,null,null,null,{"$f":"IF(I10=\"\",\"\",\n\nIF(AND(H10=\"Yearly\",'FAN - Dream Lifestyle'!$E$3=\"Yearly\"),I10,\nIF(AND(H10=\"Monthly\",'FAN - Dream Lifestyle'!$E$3=\"Yearly\"),I10*12,\nIF(AND(H10=\"Weekly\",'FAN - Dream Lifestyle'!$E$3=\"Yearly\"),I10*52,\n\nIF(AND(H10=\"Yearly\",'FAN - Dream Lifestyle'!$E$3=\"Monthly\"),I10/12,\nIF(AND(H10=\"Monthly\",'FAN - Dream Lifestyle'!$E$3=\"Monthly\"),I10,\nIF(AND(H10=\"Weekly\",'FAN - Dream Lifestyle'!$E$3=\"Monthly\"),I10*(52/12),\n\nIF(AND(H10=\"Yearly\",'FAN - Dream Lifestyle'!$E$3=\"Weekly\"),I10/52,\nIF(AND(H10=\"Monthly\",'FAN - Dream Lifestyle'!$E$3=\"Weekly\"),I10*(12/52),\nIF(AND(H10=\"Weekly\",'FAN - Dream Lifestyle'!$E$3=\"Weekly\"),I10,\n\n\"Enter Frequency\"))))))))))","v":""}]
[null,null,null,null,{"$f":"IF(D11=\"\",\"\",\n\nIF(AND(C11=\"Yearly\",'FAN - Dream Lifestyle'!$E$3=\"Yearly\"),D11,\nIF(AND(C11=\"Monthly\",'FAN - Dream Lifestyle'!$E$3=\"Yearly\"),D11*12,\nIF(AND(C11=\"Weekly\",'FAN - Dream Lifestyle'!$E$3=\"Yearly\"),D11*52,\n\nIF(AND(C11=\"Yearly\",'FAN - Dream Lifestyle'!$E$3=\"Monthly\"),D11/12,\nIF(AND(C11=\"Monthly\",'FAN - Dream Lifestyle'!$E$3=\"Monthly\"),D11,\nIF(AND(C11=\"Weekly\",'FAN - Dream Lifestyle'!$E$3=\"Monthly\"),D11*(52/12),\n\nIF(AND(C11=\"Yearly\",'FAN - Dream Lifestyle'!$E$3=\"Weekly\"),D11/52,\nIF(AND(C11=\"Monthly\",'FAN - Dream Lifestyle'!$E$3=\"Weekly\"),D11*(12/52),\nIF(AND(C11=\"Weekly\",'FAN - Dream Lifestyle'!$E$3=\"Weekly\"),D11,\n\n\"Enter Frequency\"))))))))))","v":""},null,null,null,null,{"$f":"IF(I11=\"\",\"\",\n\nIF(AND(H11=\"Yearly\",'FAN - Dream Lifestyle'!$E$3=\"Yearly\"),I11,\nIF(AND(H11=\"Monthly\",'FAN - Dream Lifestyle'!$E$3=\"Yearly\"),I11*12,\nIF(AND(H11=\"Weekly\",'FAN - Dream Lifestyle'!$E$3=\"Yearly\"),I11*52,\n\nIF(AND(H11=\"Yearly\",'FAN - Dream Lifestyle'!$E$3=\"Monthly\"),I11/12,\nIF(AND(H11=\"Monthly\",'FAN - Dream Lifestyle'!$E$3=\"Monthly\"),I11,\nIF(AND(H11=\"Weekly\",'FAN - Dream Lifestyle'!$E$3=\"Monthly\"),I11*(52/12),\n\nIF(AND(H11=\"Yearly\",'FAN - Dream Lifestyle'!$E$3=\"Weekly\"),I11/52,\nIF(AND(H11=\"Monthly\",'FAN - Dream Lifestyle'!$E$3=\"Weekly\"),I11*(12/52),\nIF(AND(H11=\"Weekly\",'FAN - Dream Lifestyle'!$E$3=\"Weekly\"),I11,\n\n\"Enter Frequency\"))))))))))","v":""}]
[null,"Business Income",null,null,{"$f":"IF(D12=\"\",\"\",\n\nIF(AND(C12=\"Yearly\",'FAN - Dream Lifestyle'!$E$3=\"Yearly\"),D12,\nIF(AND(C12=\"Monthly\",'FAN - Dream Lifestyle'!$E$3=\"Yearly\"),D12*12,\nIF(AND(C12=\"Weekly\",'FAN - Dream Lifestyle'!$E$3=\"Yearly\"),D12*52,\n\nIF(AND(C12=\"Yearly\",'FAN - Dream Lifestyle'!$E$3=\"Monthly\"),D12/12,\nIF(AND(C12=\"Monthly\",'FAN - Dream Lifestyle'!$E$3=\"Monthly\"),D12,\nIF(AND(C12=\"Weekly\",'FAN - Dream Lifestyle'!$E$3=\"Monthly\"),D12*(52/12),\n\nIF(AND(C12=\"Yearly\",'FAN - Dream Lifestyle'!$E$3=\"Weekly\"),D12/52,\nIF(AND(C12=\"Monthly\",'FAN - Dream Lifestyle'!$E$3=\"Weekly\"),D12*(12/52),\nIF(AND(C12=\"Weekly\",'FAN - Dream Lifestyle'!$E$3=\"Weekly\"),D12,\n\n\"Enter Frequency\"))))))))))","v":""},null,null,null,null,{"$f":"IF(I12=\"\",\"\",\n\nIF(AND(H12=\"Yearly\",'FAN - Dream Lifestyle'!$E$3=\"Yearly\"),I12,\nIF(AND(H12=\"Monthly\",'FAN - Dream Lifestyle'!$E$3=\"Yearly\"),I12*12,\nIF(AND(H12=\"Weekly\",'FAN - Dream Lifestyle'!$E$3=\"Yearly\"),I12*52,\n\nIF(AND(H12=\"Yearly\",'FAN - Dream Lifestyle'!$E$3=\"Monthly\"),I12/12,\nIF(AND(H12=\"Monthly\",'FAN - Dream Lifestyle'!$E$3=\"Monthly\"),I12,\nIF(AND(H12=\"Weekly\",'FAN - Dream Lifestyle'!$E$3=\"Monthly\"),I12*(52/12),\n\nIF(AND(H12=\"Yearly\",'FAN - Dream Lifestyle'!$E$3=\"Weekly\"),I12/52,\nIF(AND(H12=\"Monthly\",'FAN - Dream Lifestyle'!$E$3=\"Weekly\"),I12*(12/52),\nIF(AND(H12=\"Weekly\",'FAN - Dream Lifestyle'!$E$3=\"Weekly\"),I12,\n\n\"Enter Frequency\"))))))))))","v":""}]
[null,"Other Income:",null,null,{"$f":"IF(D13=\"\",\"\",\n\nIF(AND(C13=\"Yearly\",'FAN - Dream Lifestyle'!$E$3=\"Yearly\"),D13,\nIF(AND(C13=\"Monthly\",'FAN - Dream Lifestyle'!$E$3=\"Yearly\"),D13*12,\nIF(AND(C13=\"Weekly\",'FAN - Dream Lifestyle'!$E$3=\"Yearly\"),D13*52,\n\nIF(AND(C13=\"Yearly\",'FAN - Dream Lifestyle'!$E$3=\"Monthly\"),D13/12,\nIF(AND(C13=\"Monthly\",'FAN - Dream Lifestyle'!$E$3=\"Monthly\"),D13,\nIF(AND(C13=\"Weekly\",'FAN - Dream Lifestyle'!$E$3=\"Monthly\"),D13*(52/12),\n\nIF(AND(C13=\"Yearly\",'FAN - Dream Lifestyle'!$E$3=\"Weekly\"),D13/52,\nIF(AND(C13=\"Monthly\",'FAN - Dream Lifestyle'!$E$3=\"Weekly\"),D13*(12/52),\nIF(AND(C13=\"Weekly\",'FAN - Dream Lifestyle'!$E$3=\"Weekly\"),D13,\n\n\"Enter Frequency\"))))))))))","v":""},null,null,null,null,{"$f":"IF(I13=\"\",\"\",\n\nIF(AND(H13=\"Yearly\",'FAN - Dream Lifestyle'!$E$3=\"Yearly\"),I13,\nIF(AND(H13=\"Monthly\",'FAN - Dream Lifestyle'!$E$3=\"Yearly\"),I13*12,\nIF(AND(H13=\"Weekly\",'FAN - Dream Lifestyle'!$E$3=\"Yearly\"),I13*52,\n\nIF(AND(H13=\"Yearly\",'FAN - Dream Lifestyle'!$E$3=\"Monthly\"),I13/12,\nIF(AND(H13=\"Monthly\",'FAN - Dream Lifestyle'!$E$3=\"Monthly\"),I13,\nIF(AND(H13=\"Weekly\",'FAN - Dream Lifestyle'!$E$3=\"Monthly\"),I13*(52/12),\n\nIF(AND(H13=\"Yearly\",'FAN - Dream Lifestyle'!$E$3=\"Weekly\"),I13/52,\nIF(AND(H13=\"Monthly\",'FAN - Dream Lifestyle'!$E$3=\"Weekly\"),I13*(12/52),\nIF(AND(H13=\"Weekly\",'FAN - Dream Lifestyle'!$E$3=\"Weekly\"),I13,\n\n\"Enter Frequency\"))))))))))","v":""}]
[null,null,null,null,{"$f":"IF(D14=\"\",\"\",\n\nIF(AND(C14=\"Yearly\",'FAN - Dream Lifestyle'!$E$3=\"Yearly\"),D14,\nIF(AND(C14=\"Monthly\",'FAN - Dream Lifestyle'!$E$3=\"Yearly\"),D14*12,\nIF(AND(C14=\"Weekly\",'FAN - Dream Lifestyle'!$E$3=\"Yearly\"),D14*52,\n\nIF(AND(C14=\"Yearly\",'FAN - Dream Lifestyle'!$E$3=\"Monthly\"),D14/12,\nIF(AND(C14=\"Monthly\",'FAN - Dream Lifestyle'!$E$3=\"Monthly\"),D14,\nIF(AND(C14=\"Weekly\",'FAN - Dream Lifestyle'!$E$3=\"Monthly\"),D14*(52/12),\n\nIF(AND(C14=\"Yearly\",'FAN - Dream Lifestyle'!$E$3=\"Weekly\"),D14/52,\nIF(AND(C14=\"Monthly\",'FAN - Dream Lifestyle'!$E$3=\"Weekly\"),D14*(12/52),\nIF(AND(C14=\"Weekly\",'FAN - Dream Lifestyle'!$E$3=\"Weekly\"),D14,\n\n\"Enter Frequency\"))))))))))","v":""},null,null,null,null,{"$f":"IF(I14=\"\",\"\",\n\nIF(AND(H14=\"Yearly\",'FAN - Dream Lifestyle'!$E$3=\"Yearly\"),I14,\nIF(AND(H14=\"Monthly\",'FAN - Dream Lifestyle'!$E$3=\"Yearly\"),I14*12,\nIF(AND(H14=\"Weekly\",'FAN - Dream Lifestyle'!$E$3=\"Yearly\"),I14*52,\n\nIF(AND(H14=\"Yearly\",'FAN - Dream Lifestyle'!$E$3=\"Monthly\"),I14/12,\nIF(AND(H14=\"Monthly\",'FAN - Dream Lifestyle'!$E$3=\"Monthly\"),I14,\nIF(AND(H14=\"Weekly\",'FAN - Dream Lifestyle'!$E$3=\"Monthly\"),I14*(52/12),\n\nIF(AND(H14=\"Yearly\",'FAN - Dream Lifestyle'!$E$3=\"Weekly\"),I14/52,\nIF(AND(H14=\"Monthly\",'FAN - Dream Lifestyle'!$E$3=\"Weekly\"),I14*(12/52),\nIF(AND(H14=\"Weekly\",'FAN - Dream Lifestyle'!$E$3=\"Weekly\"),I14,\n\n\"Enter Frequency\"))))))))))","v":""}]
[null,null,null,null,{"$f":"IF(D15=\"\",\"\",\n\nIF(AND(C15=\"Yearly\",'FAN - Dream Lifestyle'!$E$3=\"Yearly\"),D15,\nIF(AND(C15=\"Monthly\",'FAN - Dream Lifestyle'!$E$3=\"Yearly\"),D15*12,\nIF(AND(C15=\"Weekly\",'FAN - Dream Lifestyle'!$E$3=\"Yearly\"),D15*52,\n\nIF(AND(C15=\"Yearly\",'FAN - Dream Lifestyle'!$E$3=\"Monthly\"),D15/12,\nIF(AND(C15=\"Monthly\",'FAN - Dream Lifestyle'!$E$3=\"Monthly\"),D15,\nIF(AND(C15=\"Weekly\",'FAN - Dream Lifestyle'!$E$3=\"Monthly\"),D15*(52/12),\n\nIF(AND(C15=\"Yearly\",'FAN - Dream Lifestyle'!$E$3=\"Weekly\"),D15/52,\nIF(AND(C15=\"Monthly\",'FAN - Dream Lifestyle'!$E$3=\"Weekly\"),D15*(12/52),\nIF(AND(C15=\"Weekly\",'FAN - Dream Lifestyle'!$E$3=\"Weekly\"),D15,\n\n\"Enter Frequency\"))))))))))","v":""},null,null,null,null,{"$f":"IF(I15=\"\",\"\",\n\nIF(AND(H15=\"Yearly\",'FAN - Dream Lifestyle'!$E$3=\"Yearly\"),I15,\nIF(AND(H15=\"Monthly\",'FAN - Dream Lifestyle'!$E$3=\"Yearly\"),I15*12,\nIF(AND(H15=\"Weekly\",'FAN - Dream Lifestyle'!$E$3=\"Yearly\"),I15*52,\n\nIF(AND(H15=\"Yearly\",'FAN - Dream Lifestyle'!$E$3=\"Monthly\"),I15/12,\nIF(AND(H15=\"Monthly\",'FAN - Dream Lifestyle'!$E$3=\"Monthly\"),I15,\nIF(AND(H15=\"Weekly\",'FAN - Dream Lifestyle'!$E$3=\"Monthly\"),I15*(52/12),\n\nIF(AND(H15=\"Yearly\",'FAN - Dream Lifestyle'!$E$3=\"Weekly\"),I15/52,\nIF(AND(H15=\"Monthly\",'FAN - Dream Lifestyle'!$E$3=\"Weekly\"),I15*(12/52),\nIF(AND(H15=\"Weekly\",'FAN - Dream Lifestyle'!$E$3=\"Weekly\"),I15,\n\n\"Enter Frequency\"))))))))))","v":""}]
[null,null,null,null,{"$f":"IF(D16=\"\",\"\",\n\nIF(AND(C16=\"Yearly\",'FAN - Dream Lifestyle'!$E$3=\"Yearly\"),D16,\nIF(AND(C16=\"Monthly\",'FAN - Dream Lifestyle'!$E$3=\"Yearly\"),D16*12,\nIF(AND(C16=\"Weekly\",'FAN - Dream Lifestyle'!$E$3=\"Yearly\"),D16*52,\n\nIF(AND(C16=\"Yearly\",'FAN - Dream Lifestyle'!$E$3=\"Monthly\"),D16/12,\nIF(AND(C16=\"Monthly\",'FAN - Dream Lifestyle'!$E$3=\"Monthly\"),D16,\nIF(AND(C16=\"Weekly\",'FAN - Dream Lifestyle'!$E$3=\"Monthly\"),D16*(52/12),\n\nIF(AND(C16=\"Yearly\",'FAN - Dream Lifestyle'!$E$3=\"Weekly\"),D16/52,\nIF(AND(C16=\"Monthly\",'FAN - Dream Lifestyle'!$E$3=\"Weekly\"),D16*(12/52),\nIF(AND(C16=\"Weekly\",'FAN - Dream Lifestyle'!$E$3=\"Weekly\"),D16,\n\n\"Enter Frequency\"))))))))))","v":""},null,null,null,null,{"$f":"IF(I16=\"\",\"\",\n\nIF(AND(H16=\"Yearly\",'FAN - Dream Lifestyle'!$E$3=\"Yearly\"),I16,\nIF(AND(H16=\"Monthly\",'FAN - Dream Lifestyle'!$E$3=\"Yearly\"),I16*12,\nIF(AND(H16=\"Weekly\",'FAN - Dream Lifestyle'!$E$3=\"Yearly\"),I16*52,\n\nIF(AND(H16=\"Yearly\",'FAN - Dream Lifestyle'!$E$3=\"Monthly\"),I16/12,\nIF(AND(H16=\"Monthly\",'FAN - Dream Lifestyle'!$E$3=\"Monthly\"),I16,\nIF(AND(H16=\"Weekly\",'FAN - Dream Lifestyle'!$E$3=\"Monthly\"),I16*(52/12),\n\nIF(AND(H16=\"Yearly\",'FAN - Dream Lifestyle'!$E$3=\"Weekly\"),I16/52,\nIF(AND(H16=\"Monthly\",'FAN - Dream Lifestyle'!$E$3=\"Weekly\"),I16*(12/52),\nIF(AND(H16=\"Weekly\",'FAN - Dream Lifestyle'!$E$3=\"Weekly\"),I16,\n\n\"Enter Frequency\"))))))))))","v":""}]
[null,null,null,null,{"$f":"IF(D17=\"\",\"\",\n\nIF(AND(C17=\"Yearly\",'FAN - Dream Lifestyle'!$E$3=\"Yearly\"),D17,\nIF(AND(C17=\"Monthly\",'FAN - Dream Lifestyle'!$E$3=\"Yearly\"),D17*12,\nIF(AND(C17=\"Weekly\",'FAN - Dream Lifestyle'!$E$3=\"Yearly\"),D17*52,\n\nIF(AND(C17=\"Yearly\",'FAN - Dream Lifestyle'!$E$3=\"Monthly\"),D17/12,\nIF(AND(C17=\"Monthly\",'FAN - Dream Lifestyle'!$E$3=\"Monthly\"),D17,\nIF(AND(C17=\"Weekly\",'FAN - Dream Lifestyle'!$E$3=\"Monthly\"),D17*(52/12),\n\nIF(AND(C17=\"Yearly\",'FAN - Dream Lifestyle'!$E$3=\"Weekly\"),D17/52,\nIF(AND(C17=\"Monthly\",'FAN - Dream Lifestyle'!$E$3=\"Weekly\"),D17*(12/52),\nIF(AND(C17=\"Weekly\",'FAN - Dream Lifestyle'!$E$3=\"Weekly\"),D17,\n\n\"Enter Frequency\"))))))))))","v":""},null,null,null,null,{"$f":"IF(I17=\"\",\"\",\n\nIF(AND(H17=\"Yearly\",'FAN - Dream Lifestyle'!$E$3=\"Yearly\"),I17,\nIF(AND(H17=\"Monthly\",'FAN - Dream Lifestyle'!$E$3=\"Yearly\"),I17*12,\nIF(AND(H17=\"Weekly\",'FAN - Dream Lifestyle'!$E$3=\"Yearly\"),I17*52,\n\nIF(AND(H17=\"Yearly\",'FAN - Dream Lifestyle'!$E$3=\"Monthly\"),I17/12,\nIF(AND(H17=\"Monthly\",'FAN - Dream Lifestyle'!$E$3=\"Monthly\"),I17,\nIF(AND(H17=\"Weekly\",'FAN - Dream Lifestyle'!$E$3=\"Monthly\"),I17*(52/12),\n\nIF(AND(H17=\"Yearly\",'FAN - Dream Lifestyle'!$E$3=\"Weekly\"),I17/52,\nIF(AND(H17=\"Monthly\",'FAN - Dream Lifestyle'!$E$3=\"Weekly\"),I17*(12/52),\nIF(AND(H17=\"Weekly\",'FAN - Dream Lifestyle'!$E$3=\"Weekly\"),I17,\n\n\"Enter Frequency\"))))))))))","v":""}]
[null,null,null,null,{"$f":"IF(D18=\"\",\"\",\n\nIF(AND(C18=\"Yearly\",'FAN - Dream Lifestyle'!$E$3=\"Yearly\"),D18,\nIF(AND(C18=\"Monthly\",'FAN - Dream Lifestyle'!$E$3=\"Yearly\"),D18*12,\nIF(AND(C18=\"Weekly\",'FAN - Dream Lifestyle'!$E$3=\"Yearly\"),D18*52,\n\nIF(AND(C18=\"Yearly\",'FAN - Dream Lifestyle'!$E$3=\"Monthly\"),D18/12,\nIF(AND(C18=\"Monthly\",'FAN - Dream Lifestyle'!$E$3=\"Monthly\"),D18,\nIF(AND(C18=\"Weekly\",'FAN - Dream Lifestyle'!$E$3=\"Monthly\"),D18*(52/12),\n\nIF(AND(C18=\"Yearly\",'FAN - Dream Lifestyle'!$E$3=\"Weekly\"),D18/52,\nIF(AND(C18=\"Monthly\",'FAN - Dream Lifestyle'!$E$3=\"Weekly\"),D18*(12/52),\nIF(AND(C18=\"Weekly\",'FAN - Dream Lifestyle'!$E$3=\"Weekly\"),D18,\n\n\"Enter Frequency\"))))))))))","v":""},null,null,null,null,{"$f":"IF(I18=\"\",\"\",\n\nIF(AND(H18=\"Yearly\",'FAN - Dream Lifestyle'!$E$3=\"Yearly\"),I18,\nIF(AND(H18=\"Monthly\",'FAN - Dream Lifestyle'!$E$3=\"Yearly\"),I18*12,\nIF(AND(H18=\"Weekly\",'FAN - Dream Lifestyle'!$E$3=\"Yearly\"),I18*52,\n\nIF(AND(H18=\"Yearly\",'FAN - Dream Lifestyle'!$E$3=\"Monthly\"),I18/12,\nIF(AND(H18=\"Monthly\",'FAN - Dream Lifestyle'!$E$3=\"Monthly\"),I18,\nIF(AND(H18=\"Weekly\",'FAN - Dream Lifestyle'!$E$3=\"Monthly\"),I18*(52/12),\n\nIF(AND(H18=\"Yearly\",'FAN - Dream Lifestyle'!$E$3=\"Weekly\"),I18/52,\nIF(AND(H18=\"Monthly\",'FAN - Dream Lifestyle'!$E$3=\"Weekly\"),I18*(12/52),\nIF(AND(H18=\"Weekly\",'FAN - Dream Lifestyle'!$E$3=\"Weekly\"),I18,\n\n\"Enter Frequency\"))))))))))","v":""}]
[null,null,null,null,{"$f":"IF(D19=\"\",\"\",\n\nIF(AND(C19=\"Yearly\",'FAN - Dream Lifestyle'!$E$3=\"Yearly\"),D19,\nIF(AND(C19=\"Monthly\",'FAN - Dream Lifestyle'!$E$3=\"Yearly\"),D19*12,\nIF(AND(C19=\"Weekly\",'FAN - Dream Lifestyle'!$E$3=\"Yearly\"),D19*52,\n\nIF(AND(C19=\"Yearly\",'FAN - Dream Lifestyle'!$E$3=\"Monthly\"),D19/12,\nIF(AND(C19=\"Monthly\",'FAN - Dream Lifestyle'!$E$3=\"Monthly\"),D19,\nIF(AND(C19=\"Weekly\",'FAN - Dream Lifestyle'!$E$3=\"Monthly\"),D19*(52/12),\n\nIF(AND(C19=\"Yearly\",'FAN - Dream Lifestyle'!$E$3=\"Weekly\"),D19/52,\nIF(AND(C19=\"Monthly\",'FAN - Dream Lifestyle'!$E$3=\"Weekly\"),D19*(12/52),\nIF(AND(C19=\"Weekly\",'FAN - Dream Lifestyle'!$E$3=\"Weekly\"),D19,\n\n\"Enter Frequency\"))))))))))","v":""},null,null,null,null,{"$f":"IF(I19=\"\",\"\",\n\nIF(AND(H19=\"Yearly\",'FAN - Dream Lifestyle'!$E$3=\"Yearly\"),I19,\nIF(AND(H19=\"Monthly\",'FAN - Dream Lifestyle'!$E$3=\"Yearly\"),I19*12,\nIF(AND(H19=\"Weekly\",'FAN - Dream Lifestyle'!$E$3=\"Yearly\"),I19*52,\n\nIF(AND(H19=\"Yearly\",'FAN - Dream Lifestyle'!$E$3=\"Monthly\"),I19/12,\nIF(AND(H19=\"Monthly\",'FAN - Dream Lifestyle'!$E$3=\"Monthly\"),I19,\nIF(AND(H19=\"Weekly\",'FAN - Dream Lifestyle'!$E$3=\"Monthly\"),I19*(52/12),\n\nIF(AND(H19=\"Yearly\",'FAN - Dream Lifestyle'!$E$3=\"Weekly\"),I19/52,\nIF(AND(H19=\"Monthly\",'FAN - Dream Lifestyle'!$E$3=\"Weekly\"),I19*(12/52),\nIF(AND(H19=\"Weekly\",'FAN - Dream Lifestyle'!$E$3=\"Weekly\"),I19,\n\n\"Enter Frequency\"))))))))))","v":""}]
[null,null,null,null,{"$f":"IF(D20=\"\",\"\",\n\nIF(AND(C20=\"Yearly\",'FAN - Dream Lifestyle'!$E$3=\"Yearly\"),D20,\nIF(AND(C20=\"Monthly\",'FAN - Dream Lifestyle'!$E$3=\"Yearly\"),D20*12,\nIF(AND(C20=\"Weekly\",'FAN - Dream Lifestyle'!$E$3=\"Yearly\"),D20*52,\n\nIF(AND(C20=\"Yearly\",'FAN - Dream Lifestyle'!$E$3=\"Monthly\"),D20/12,\nIF(AND(C20=\"Monthly\",'FAN - Dream Lifestyle'!$E$3=\"Monthly\"),D20,\nIF(AND(C20=\"Weekly\",'FAN - Dream Lifestyle'!$E$3=\"Monthly\"),D20*(52/12),\n\nIF(AND(C20=\"Yearly\",'FAN - Dream Lifestyle'!$E$3=\"Weekly\"),D20/52,\nIF(AND(C20=\"Monthly\",'FAN - Dream Lifestyle'!$E$3=\"Weekly\"),D20*(12/52),\nIF(AND(C20=\"Weekly\",'FAN - Dream Lifestyle'!$E$3=\"Weekly\"),D20,\n\n\"Enter Frequency\"))))))))))","v":""},null,null,null,null,{"$f":"IF(I20=\"\",\"\",\n\nIF(AND(H20=\"Yearly\",'FAN - Dream Lifestyle'!$E$3=\"Yearly\"),I20,\nIF(AND(H20=\"Monthly\",'FAN - Dream Lifestyle'!$E$3=\"Yearly\"),I20*12,\nIF(AND(H20=\"Weekly\",'FAN - Dream Lifestyle'!$E$3=\"Yearly\"),I20*52,\n\nIF(AND(H20=\"Yearly\",'FAN - Dream Lifestyle'!$E$3=\"Monthly\"),I20/12,\nIF(AND(H20=\"Monthly\",'FAN - Dream Lifestyle'!$E$3=\"Monthly\"),I20,\nIF(AND(H20=\"Weekly\",'FAN - Dream Lifestyle'!$E$3=\"Monthly\"),I20*(52/12),\n\nIF(AND(H20=\"Yearly\",'FAN - Dream Lifestyle'!$E$3=\"Weekly\"),I20/52,\nIF(AND(H20=\"Monthly\",'FAN - Dream Lifestyle'!$E$3=\"Weekly\"),I20*(12/52),\nIF(AND(H20=\"Weekly\",'FAN - Dream Lifestyle'!$E$3=\"Weekly\"),I20,\n\n\"Enter Frequency\"))))))))))","v":""}]
[]
[null,null,null,"TOTAL:",{"$f":"SUM(E6:E20)","v":0},null,null,null,"TOTAL:",{"$f":"SUM(J5:J20)","v":0}]

{"sheet":"FAN -Financial Abundance Number","index":6,"n_rows":35,"n_cols":17,"rows_kept":35,"cut":false,"hidden":false,"merged":[[1,7,1,8],[2,6,3,6],[5,1,10,2],[5,3,6,3],[5,4,6,4],[7,3,8,3],[7,4,8,4],[9,3,10,3],[9,4,10,4],[14,1,15,2],[14,3,15,3],[16,1,17,2],[16,3,17,3],[16,4,17,4],[14,4,15,5]]}
[]
[null,null,null,null,null,null,null,"INSERT YOUR OWN % \n▼ HERE ▼"]
[null,null,null,null,null,null,"Year",0.18,"Return Generated",7.0000000000000007E-2,"Return Generated",0.1,"Return Generated",0.15,"Return Generated",0.2,"Return Generated"]
[null,null,null,null,null,null,null,"Per Year","per month","Per Year",{"$f":"$I$4","v":"per month"},"Per Year",{"$f":"$I$4","v":"per month"},"Per Year",{"$f":"$I$4","v":"per month"},"Per Year",{"$f":"$I$4","v":"per month"}]
[null,null,null,"Amount ($)","Period",null,"0\n(This Year)"]
[null,"Financial Freedom Number",null,null,"Yearly",null,1]
[null,null,null,null,null,null,2]
[null,null,null,null,"Monthly",null,3]
[null,null,null,null,null,null,4]
[null,null,null,null,"Weekly",null,5]
[null,null,null,null,null,null,6]
[null,null,null,null,null,null,7]
[null,null,null,null,null,null,8]
[null,null,null,null,null,null,9]
[null,"Starting Capital",null,null,{"$f":"IF(D15=0,\"**Enter STARTING CAPITAL**\",\"\")","v":"**Enter STARTING CAPITAL**"},null,10]
[null,null,null,null,null,null,11]
[null,"Additional Contributions",null,null,"per month",null,12]
[null,null,null,null,null,null,13]
[null,null,null,null,null,null,14]
[null,null,null,null,null,null,15]
[null,null,null,null,null,null,16]
[null,null,null,null,null,null,17]
[null,null,null,null,null,null,18]
[null,null,null,null,null,null,19]
[null,null,null,null,null,null,20]
[null,null,null,null,null,null,21]
[null,null,null,null,null,null,22]
[null,null,null,null,null,null,23]
[null,null,null,null,null,null,24]
[null,null,null,null,null,null,25]
[null,null,null,null,null,null,26]
[null,null,null,null,null,null,27]
[null,null,null,null,null,null,28]
[null,null,null,null,null,null,29]
[null,null,null,null,null,null,30]